Cogmind - Beta 16 @@@ ROGUE MODE // 2025.10.30 @ 07:48:38 Player: Wyvric Result: Heading to fleet! Performance ------------- Evolutions (9) 4500 Regions Visited (32) 6400 Robots Destroyed (832) 4160 Value Destroyed (47424) 47424 Prototype IDs (390) 7800 Alien Tech Used (14) 2800 Bonus (68185) 68185 TOTAL SCORE: 141269 Bonus ------- Triggered High Security 1000 High Alert Combat Kills 18645 Follower Combat Kills 2029 Destroyed Unchained 1000 Network Hubs Disabled 400 Aligned with FarCom 300 Met Zhirov 300 MAIN.C Attacked Warlord 500 Built Enhanced Grunts 300 Met R17 at Cetus 500 Used Core Reset Matrix 3000 Met R17 at Research 2000 Scanned by Researcher 500 Destroyed MAIN.C Guards 500 Met MAIN.C 5000 Destroyed MAIN.C Shell 5000 Destroyed MAIN.C 10000 Met Architect 300 Started Test 138-B 500 Destroyed A8 300 Destroyed A6 400 Destroyed A5 500 Destroyed A4 700 Destroyed A3 800 Destroyed A2 1000 Destroyed Architect 15000 Win 3000 Friendly Fire -5289 Cogmind --------- Core Integrity 1632/2100 Matter 270/300 Energy 883/897 System Corruption 0% +Membrane Temperature Cool (18) Movement Flying (77) Location To Fleet Rendezvous Parts ------- > --- POWER (3) -------- Singularity-Zero Reactor > --- PROPULSION (8) --- Flying Surge-HC Exoskeleton > --- UTILITY (10) ----- Armored Scrap Engine Huge Storage Unit ST Field Compressor Experimental Targeting Computer Experimental Core Analyzer Experimental Armor Integrity Analyzer Experimental Reaction Control System Centrium Linked Plating AEGIS Remote Shield > --- WEAPON (4) ------- Flak Directed Sniper Construct/C > --- INVENTORY (25) --- Zero-point Reactor Zero-point Reactor Experimental Cooling System Advanced Coolant Injector Advanced Coolant Injector Experimental Coolant Injector Experimental Energy Well (600) Experimental Matter Compressor (500) Experimental Targeting Computer Experimental Core Analyzer Experimental Weapon Cycler Advanced Reaction Control System Experimental Phase Shifter Experimental Phase Shifter Centrium Linked Plating Experimental Powered Armor Experimental Powered Armor Experimental Powered Armor Experimental Powered Armor Experimental Powered Armor Advanced Force Field Spacefold Activator Peak State ------------ > --- POWER ------------ Singularity-Zero Reactor > --- PROPULSION ------- Flying Surge-HC Exoskeleton > --- UTILITY ---------- Armored Scrap Engine Huge Storage Unit Experimental Targeting Computer Experimental Core Analyzer Experimental Armor Integrity Analyzer Experimental Reaction Control System Experimental Phase Shifter Centrium Linked Plating AEGIS Remote Shield > --- WEAPON ----------- Flak Directed Sniper Construct/C > --- INVENTORY -------- Zero-point Reactor Zero-point Reactor Combat Antigrav System Experimental Cooling System Advanced Coolant Injector Advanced Coolant Injector Experimental Coolant Injector Experimental Energy Well Experimental Matter Compressor ST Field Compressor Experimental Targeting Computer Experimental Core Analyzer Experimental Weapon Cycler Advanced Reaction Control System Experimental Phase Shifter Centrium Linked Plating Experimental Powered Armor Experimental Powered Armor Experimental Powered Armor Experimental Powered Armor Experimental Powered Armor Advanced Force Field High-powered Transdimensional Reconstructor High-powered Transdimensional Reconstructor Spacefold Activator [Rating: 250] Favorites ----------- Power Constructs Engine Improved Ion Engine Power Core Fusion Compressor Reactor Constructs Propulsion Constructs Treads Light Treads Leg Myomer Leg Wheel Wheel Hover Unit Improved Antigrav System Flight Unit Constructs Utility Armored Scrap Engine Device Armored Scrap Engine Storage Huge Storage Unit Processor Advanced Signal Interpreter Hackware Advanced System Shield Protection SHELL Armor Artifact Microwarp Drive Weapon Constructs Energy Gun Improved Medium Laser Energy Cannon Constructs Ballistic Gun Improved Assault Rifle Ballistic Cannon Improved Light Cannon Launcher Containment Facilitator Special Weapon Plasma Cutter Slashing Weapon Sigix Broadsword Piercing Weapon Lance Build | -11 -10 -10 -9 -9 -9 -8 -8 -8 -8 -6 -6 -6 -6 -6 -5 -5 -5 -5 -4 -4 -4 -4 -4 -3 -3 -3 -3 -2 -2 -1 -1 -1 ------- Run | Yrd Mat Min Mat Min Exi Min Mat Sto Rec Fac Ext Cet Arc Hub Fac Upp Upp War Pro Fac Upp Upp Zhi Pro Res Qua Sec Res Tes Acc Com Ac0 Slots Evolved 18 | . . . 2 . . . 2 . . 4 . . . . 2 . . . . 2 . . . . 2 . . 2 . 2 . . Power 2 | . . . . . . . . . . 1 . . . . 1 . . . . . . . . . . . . . . . . . Propulsion 6 | . . . 1 . . . 2 . . 1 . . . . . . . . . . . . . . . . . 2 . . . . Utility 8 | . . . 1 . . . . . . 1 . . . . 1 . . . . 2 . . . . 1 . . . . 2 . . Weapon 2 | . . . . . . . . . . 1 . . . . . . . . . . . . . . 1 . . . . . . . Parts Attached 422 | 7 14 9 20 8 1 4 19 . 9 18 3 2 5 7 15 1 1 1 2 16 5 1 2 5 28 18 28 8 37 23 96 9 Power 26 | 1 2 1 4 1 . . 2 . . 2 . . . . 1 . . . . 5 2 . 1 1 . . . 2 1 . . . Engine 14 | 1 2 1 4 1 . . 2 . . . . . . . . . . . . 1 2 . . . . . . . . . . . Core 6 | . . . . . . . . . . 2 . . . . . . . . . 3 . . . 1 . . . . . . . . Reactor 6 | . . . . . . . . . . . . . . . 1 . . . . 1 . . 1 . . . . 2 1 . . . Propulsion 56 | 2 4 2 7 2 . 1 7 . 4 . . . . . . . . . . . . . . . . . . 1 9 4 13 . Treads 19 | 2 . . 6 1 . . 3 . 4 . . . . . . . . . . . . . . . . . . . . 1 2 . Leg 9 | . . . . . . . . . . . . . . . . . . . . . . . . . . . . 1 2 3 3 . Wheel 15 | . 4 2 1 1 . 1 4 . . . . . . . . . . . . . . . . . . . . . . . 2 . Hover 9 | . . . . . . . . . . . . . . . . . . . . . . . . . . . . . 4 . 5 . Flight 4 | . . . . . . . . . . . . . . . . . . . . . . . . . . . . . 3 . 1 . Utility 259 | 2 4 2 5 4 1 1 5 . 4 8 3 1 5 7 14 1 1 1 2 10 3 1 1 3 20 11 19 3 17 17 74 9 Device 147 | 1 2 1 2 2 . . . . 1 4 2 . 5 5 8 1 1 1 2 7 2 1 . 2 11 6 13 2 10 9 40 6 Storage 28 | 1 1 . 2 1 1 . . . 1 1 . . . . . . . . . . . . . . 2 . 1 1 1 . 15 . Processor 35 | . . . . . . . 1 . 1 1 . . . 1 3 . . . . 2 1 . . . 3 3 3 . 2 4 9 1 Hackware 11 | . . . . . . . . . . 1 1 . . 1 2 . . . . . . . . . 1 1 . . . 3 1 . Protection 36 | . 1 1 1 1 . 1 4 . 1 1 . 1 . . 1 . . . . 1 . . 1 1 3 1 . . 4 1 9 2 Artifact 2 | . . . . . . . . . . . . . . . . . . . . . . . . . . . 2 . . . . . Weapon 81 | 2 4 4 4 1 . 2 5 . 1 8 . 1 . . . . . . . 1 . . . 1 8 7 9 2 10 2 9 . Energy Gun 17 | 1 3 . . . . . . . 1 3 . . . . . . . . . . . . . . . 1 3 . 5 . . . Energy Cannon 19 | . . . . . . . . . . 3 . . . . . . . . . 1 . . . 1 5 1 2 . 3 . 3 . Ballistic Gun 19 | 1 . . 2 1 . 1 4 . . . . 1 . . . . . . . . . . . . 3 1 2 1 1 1 . . Ballistic Cannon 10 | . 1 2 2 . . . . . . 1 . . . . . . . . . . . . . . . . . 1 . 1 2 . Launcher 9 | . . 2 . . . 1 1 . . . . . . . . . . . . . . . . . . 1 1 . . . 3 . Special Weapon 2 | . . . . . . . . . . 1 . . . . . . . . . . . . . . . 1 . . . . . . Impact Weapon . | . . . . . . . . . . . . . . . . . . . . . . . . . . . . . . . . . Slashing Weapon 1 | . . . . . . . . . . . . . . . . . . . . . . . . . . 1 . . . . . . Piercing Weapon 4 | . . . . . . . . . . . . . . . . . . . . . . . . . . 1 1 . 1 . 1 . Special Melee Weapon . | . . . . . . . . . . . . . . . . . . . . . . . . . . . . . . . . . Unidentified Prototypes 56 | . 1 . 2 . . . 1 . 1 1 . 2 . 3 2 . . . 2 5 . . 3 . 5 4 4 . 12 . 6 2 Corrupted Parts 2 | . . . . . . . . . . . . . . . . . . . . 2 . . . . . . . . . . . . System Corruption 19 | . . . . . . . . . . . . . . . . . . . . 19 . . . . . . . . . . . . Parts Lost 71 | . 3 6 7 5 . . 6 . . 1 . . . 1 1 . . . . 11 . 1 . 2 1 6 3 1 . 6 10 . Power 17 | . 1 2 1 1 . . 1 . . 1 . . . 1 . . . . . 5 . . . 1 . . 1 . . . 2 . Propulsion 17 | . 2 2 3 2 . . 5 . . . . . . . . . . . . . . . . . . . . 1 . . 2 . Utility 32 | . . 2 2 1 . . . . . . . . . . 1 . . . . 5 . 1 . 1 1 5 2 . . 5 6 . Weapon 5 | . . . 1 1 . . . . . . . . . . . . . . . 1 . . . . . 1 . . . 1 . . Highest Loss Streak 5 | . 1 4 4 3 . . 5 . . 1 . . . 1 1 . . . . 3 . 1 . 1 1 5 1 1 . 2 2 . To Critical Strikes 3 | . . . . . . . . . . . . . . . . . . . . . . . . . 1 . . . . 1 1 . Average Backups 22 | 4 16 16 19 19 22 28 27 27 21 23 22 23 24 24 24 23 25 24 24 22 23 22 23 22 23 21 20 19 23 22 20 24 Power . | . . . . . 2 3 . . . . 1 1 1 1 . . . . . . 2 3 2 . . . . . . . . 2 Propulsion 3 | 3 1 . 5 6 5 5 7 9 5 4 4 2 1 2 7 3 3 3 5 7 4 3 1 3 1 2 1 . . . 1 1 Utility 11 | . 3 3 1 3 5 8 9 6 7 7 6 7 11 13 14 17 19 19 17 13 13 12 12 13 14 14 12 12 14 11 11 20 Weapon 5 | . 10 13 12 9 9 10 10 10 8 9 9 10 10 8 1 2 3 2 1 1 2 3 5 4 7 2 2 2 3 5 4 . Tool/Special . | . . . . . . . . . . . . . . . . . . . . . . . . . . . . . . . . . Unused Backups 323 | 2 2 . 7 . . . 4 1 25 13 10 5 5 9 25 5 1 1 16 16 4 8 6 2 18 7 17 1 6 6 77 24 Power 31 | . . . 1 . . . 3 . . . 2 1 1 . . . . . . . 1 . 1 1 1 . . . . 1 16 2 Propulsion 89 | 2 . . 2 . . . . . 12 4 3 2 . 1 5 4 . . 7 9 2 4 3 . 5 3 4 . 1 1 13 2 Utility 69 | . 1 . . . . . . 1 4 4 . 1 . 1 6 . 1 . 6 . 1 3 1 . 1 1 3 . 1 . 15 18 Weapon 131 | . 1 . 4 . . . 1 . 8 5 5 1 4 7 14 1 . 1 3 7 . 1 1 1 11 3 10 1 4 4 31 2 Tool/Special 3 | . . . . . . . . . 1 . . . . . . . . . . . . . . . . . . . . . 2 . Average Slot Usage (%) 51 | . 99 90 81 92 96 88 70 72 68 46 40 44 40 40 45 41 41 41 41 46 42 42 43 47 49 52 49 39 36 41 41 47 Engine 2 | . 13 9 10 11 11 11 6 9 8 4 2 . . 3 1 . . . 2 2 2 . . . . . . . . . . . Core 1 | . . . . . . . . . . 2 3 6 1 . . 5 5 5 2 2 2 4 5 7 . . . . . . . . Reactor 2 | . . . . . . . . . . . . . 4 2 7 . . . . 2 . . 1 2 4 4 4 4 4 3 3 4 Treads 5 | . 4 . 23 26 22 14 10 9 23 4 6 6 6 6 5 . . . . 2 5 5 2 . . . . . 1 . 1 . Leg 1 | . . . . . . . . . . . . . . . . 4 5 5 4 1 . . . . 4 4 . . 1 . 1 1 Wheel 2 | . 23 26 8 . 11 18 17 18 2 . . . . . . . . . . . . . . . . . . . . . . . Device 12 | . 13 9 1 18 17 1 . . 6 10 12 10 12 10 10 11 11 10 11 14 10 12 14 15 14 14 19 14 8 15 15 15 Storage 5 | . 14 14 11 11 12 11 9 9 9 6 6 6 6 6 5 5 5 5 5 5 5 5 5 5 4 4 4 4 4 4 4 4 Processor 2 | . . . . . . . 1 . . . . . . . 3 5 5 5 5 4 5 4 . . 3 6 2 . . 2 2 12 Protection 3 | . . . 3 2 . 9 7 9 2 1 . 1 . 1 . . . . . 3 4 4 5 4 3 5 . . 3 4 5 4 Energy Cannon 2 | . . . . . . . . . . . 4 9 1 3 1 . . 3 3 1 . 4 1 3 6 2 3 2 3 1 2 2 Ballistic Gun 2 | . 2 . 4 21 22 18 15 18 9 6 . 1 . . . . . . . . . . . . . . . 2 . . . . Ballistic Cannon 2 | . . 22 16 . . . . . . . 1 . 4 3 3 5 5 1 1 3 4 . 3 2 1 3 1 1 . 2 2 1 Peak Build Rating 250 | 9 16 15 20 20 27 28 48 48 52 84 89 95 100 100 120 120 120 122 124 146 143 134 142 142 161 197 220 229 222 232 240 250 Average Rating 131 | 5 13 11 15 18 22 27 36 46 42 70 77 84 96 94 108 118 118 118 116 127 133 131 130 122 147 171 189 189 192 213 197 239 On Entrance 100 | . 9 15 10 20 19 27 27 48 44 52 74 74 95 99 90 114 119 119 122 111 132 132 132 134 122 155 197 190 195 222 183 232 Avg Prop Armor Cover (%) 7 | . 13 . 13 18 15 7 8 5 16 . . . . . . . . . . . . . . . . . . . 1 1 1 . Naked Turns . | . . . . . . . . . . . . . . . . . . . . . . . . . . . . . . . . . Heaviest Build 293 | 14 54 54 65 98 293 214 222 222 222 118 112 123 123 128 143 140 143 137 130 154 128 129 147 147 158 159 155 145 217 181 240 260 Greatest Support 435 | 40 40 26 60 60 40 40 66 56 102 110 178 178 178 178 269 269 195 195 246 216 120 120 120 174 257 248 248 151 265 209 435 370 Greatest Overweight (x) 37 | . 2 2 4 9 29 10 22 3 6 1 1 . . . . . . . . 37 1 1 1 1 . . 1 1 2 2 10 1 Average Overweight (x) . | . 1 1 2 1 8 9 6 3 1 . . . . . . . . . . . . . . . . . . . . . . . Largest Inventory Capacity 35 | 8 20 20 20 25 35 35 35 35 35 25 25 25 25 25 25 25 25 25 25 25 25 25 25 25 25 25 25 25 25 25 25 25 Average Capacity 24 | 6 17 20 20 23 28 35 35 35 23 25 25 25 25 25 25 25 25 25 25 25 25 25 25 25 24 25 25 25 25 25 23 25 Most Carried 35 | 8 20 20 20 21 32 35 35 34 35 25 25 25 25 25 25 25 25 25 25 25 25 25 25 25 25 25 25 25 25 25 25 25 Average Carried 23 | 4 16 16 19 19 25 34 34 33 22 24 23 24 24 24 24 23 24 24 24 22 24 23 24 23 24 24 24 24 24 23 21 24 Final Capacity 35 | 8 20 20 20 25 35 35 35 35 25 25 25 25 25 25 25 25 25 25 25 25 25 25 25 25 25 25 25 25 25 25 25 25 Final Carried 35 | 7 20 17 20 18 32 35 34 34 25 24 22 25 25 25 24 25 25 24 22 24 25 25 25 24 25 24 25 25 25 21 25 22 Scrap Engine Consumption 936 | . . . . . . . . . 75 31 44 9 10 12 43 6 2 1 14 47 12 11 7 17 61 21 38 18 75 47 317 18 Constructs Created 6 | . . . . . . . . . 3 1 . . . . . . . . . 1 . . . . 1 . . . . . . . Constructs Modified 434 | . . . . . . . . . 21 17 24 1 3 4 20 6 1 1 8 23 8 5 3 8 27 9 20 7 34 29 146 9 Class Distribution -------------------- 38% | Construct 38% | Alien-Construct 10% | Mutant 4% | Hauler-Mutant 3% | Commander-Construct Dominant Class ---------------- Mutant | -10/Materials Mutant | -10/Mines Mutant | -9/Materials Mutant | -9/Mines Scavenger-Mutant | -9/Exiles Hauler-Mutant | -8/Mines Hauler-Mutant | -8/Materials Hauler-Mutant | -8/Storage Construct | -8/Recycling Construct | -6/Factory Construct | -6/Extension Commander-Construct | -6/Cetus Commander-Construct | -6/Archives Construct | -6/Hub_04(d) Construct | -5/Factory Construct | -5/Upper Caves Construct | -5/Upper Caves Construct | -5/Warlord Construct | -4/Proximity Caves Construct | -4/Factory Construct | -4/Upper Caves Construct | -4/Upper Caves Construct | -4/Zhirov Construct | -3/Proximity Caves Construct | -3/Research Construct | -3/Quarantine Alien-Construct | -3/Section 7 Alien-Construct | -2/Research Alien-Construct | -2/Testing Alien-Construct | -1/Access Alien-Construct | -1/Command Alien-Construct | -1/Access_0 Resources | -11 -10 -10 -9 -9 -9 -8 -8 -8 -8 -6 -6 -6 -6 -6 -5 -5 -5 -5 -4 -4 -4 -4 -4 -3 -3 -3 -3 -2 -2 -1 -1 -1 ----------- Run | Yrd Mat Min Mat Min Exi Min Mat Sto Rec Fac Ext Cet Arc Hub Fac Upp Upp War Pro Fac Upp Upp Zhi Pro Res Qua Sec Res Tes Acc Com Ac0 Matter Collected 31916 | 282 172 196 1144 300 . 156 614 . 494 202 332 10 320 338 1735 509 672 58 1068 2294 423 340 99 497 1177 531 1234 244 1600 3386 10189 1300 Remotely 4953 | . . . . 62 . . . . . . . . . . 682 . 180 . . 910 . . . . . . . . . . 3119 . Salvage Created 53294 | 152 744 92 1640 394 . 182 803 . 1750 693 1271 361 469 1580 2367 356 779 . 1299 3615 773 497 130 971 1121 944 2323 992 2213 5817 14368 4598 Parts 2483 | 7 52 3 93 22 . 29 52 . 69 22 47 19 28 80 97 10 30 . 44 127 30 37 6 57 44 39 118 16 132 226 519 428 Haulers Intercepted 7 | . . . 2 . . . . . . . . . . 2 . . . . 1 1 . . . . . . 1 . . . . . Recyclers Shooed 26 | 1 . . 4 . . . . . 4 . 2 . . . 2 . . . . 3 . . . . 2 1 1 . 1 4 1 . Parts Field Recycled 113 | . . . . . . . . . . . . . . . 36 . 3 . 11 37 . 9 . 10 7 . . . . . . . Retrieved Matter 2374 | . . . . . . . . . . . . . . . 604 . 15 . 209 1234 . 158 . 30 124 . . . . . . . Parts Self-Destructed 161 | . . . . . . . . . . . . . . . . 8 26 . 42 . 14 25 4 42 . . . . . . . . Prevented 2 | . . . . . . . . . . . . . . . . . . . . . . 1 . 1 . . . . . . . . Parts Restored . | . . . . . . . . . . . . . . . . . . . . . . . . . . . . . . . . . Kills | -11 -10 -10 -9 -9 -9 -8 -8 -8 -8 -6 -6 -6 -6 -6 -5 -5 -5 -5 -4 -4 -4 -4 -4 -3 -3 -3 -3 -2 -2 -1 -1 -1 ------- Run | Yrd Mat Min Mat Min Exi Min Mat Sto Rec Fac Ext Cet Arc Hub Fac Upp Upp War Pro Fac Upp Upp Zhi Pro Res Qua Sec Res Tes Acc Com Ac0 Combat Hostiles Destroyed 678 | . 21 23 38 12 . 12 18 . 7 11 14 3 2 19 28 2 12 . 18 38 4 8 . 14 12 10 26 10 28 67 181 40 Melee 14 | . . . . . . . . . . . 1 . . . . . . . . . . . . . . . 11 1 . . 1 . Guns 74 | . 21 . 6 12 . 4 13 . 7 9 . . . . . . . . . . . . . . . 1 1 . . . . . Cannons 479 | . . 3 29 . . . . . . 1 7 . 1 19 28 2 12 . 18 25 4 6 . 12 7 7 14 7 28 66 149 34 AOE 69 | . . 20 3 . . 8 5 . . . . . . . . . . . . 1 . 2 . 2 . 1 . . . 1 26 . Classes Destroyed 33 | 2 4 2 5 . . . 1 . 2 1 . . . . 2 . . . 2 5 1 2 . 1 . . . . 1 1 1 . Worker 43 | . 1 . 4 1 . 1 5 . . . . . . 4 1 . . . . 6 . . . . . . 2 1 1 6 10 . Builder 27 | . . . 1 . . 2 3 . 6 . . . . 1 1 . . . . 1 . . . . . . 2 . 4 6 . . Tunneler 2 | 2 . . . . . . . . . . . . . . . . . . . . . . . . . . . . . . . . Hauler 7 | . . . 2 . . . . . . . . . . 2 . . . . 1 1 . . . . . . 1 . . . . . Recycler 51 | 1 1 . 5 . . 1 1 . 8 . 3 . . . 4 . . . . 5 . . . . . 1 2 1 2 6 10 . Minesweeper 2 | . . . . . . . . . . . . . . . . . . . . . . 1 . 1 . . . . . . . . Mechanic 15 | . . . . . . . . . . . . . . . . . . . . 1 . . . . . . 1 . . . 13 . Operator 13 | . 1 . . . . . 1 . . . 2 . 6 1 . . . . . . . . . . . 1 . . . . 1 . Drone 2 | . . . . . . . . . . . . . . . . . . . . . . . . 2 . . . . . . . . Watcher 18 | . . . 3 . . . 1 . . 1 . 1 . . 2 . . . . . . . . . . 1 1 2 1 . 5 . Swarmer 77 | . 6 1 6 4 . 12 3 . . . 2 . . 3 . . . . 7 4 . 3 . 4 . 1 3 . 4 4 10 . Saboteur 13 | . . . . . . . . . . . . . . . . . . . . 1 . . . . . . . . . 1 11 . Grunt 227 | . 15 1 25 6 . . 8 . . 9 5 . . 9 8 . 9 . 5 11 3 3 . 3 . 3 2 6 6 23 67 . Brawler 24 | . . . 1 . . . . . . . 2 . . . . . 2 . . . . . . 1 . . . . . . 18 . Duelist 18 | . . . . . . . . . . 1 . . . . 1 . . . . . 1 . . 1 . 1 . . . 3 10 . Protector 8 | . . . . . . . . . . . . . . . . . . . 1 . . . . . . . . . . . 7 . Sentry 48 | . . . 6 . . . 6 . 4 1 2 . 2 3 6 1 . . 1 . . . . 1 4 . 5 . . 3 3 . Demolisher 1 | . . 1 . . . . . . . . . . . . . . . . . . . . . . . . . . . . . . Specialist 8 | . . . . . . . . . . . . . . . . . . . 3 1 . . . . . . 4 . . . . . Hunter 54 | . . . . . . . 1 . . . 3 . . 2 2 1 1 . 1 12 . . . . 6 . 3 2 . 14 6 . Programmer 89 | . . . . . . . . . . . . . . . 10 . . . . 5 . 1 . 1 . 4 7 2 15 15 29 . Heavy 3 | . . . . . . . . . . . . . . . . . . . . 2 . . . . . . . . . . 1 . Behemoth 4 | . . . . . . . . . . . . . . . 1 . . . . . . . . 1 1 . . . . . 1 . Cetus Guard 3 | . . . . . . . . . . . . 3 . . . . . . . . . . . . . . . . . . . . S7 Guard 2 | . . . . . . . . . . . . . . . . . . . . . . . . . . . 2 . . . . . M Guard 2 | . . . . . . . . . . . . . . . . . . . . . . . . . . . . . . . 2 . Enhanced Grunt 20 | . . . . . . . . . . . . . . . . . . . . . . . . . . . . . . . . 20 Enhanced Sentry 5 | . . . . . . . . . . . . . . . . . . . . . . . . . . . . . . . . 5 Enhanced Hunter 8 | . . . . . . . . . . . . . . . . . . . . . . . . . . . . . . . . 8 Lightning 2 | . . . . . . . . . . . . . . 2 . . . . . . . . . . . . . . . . . . CL-0N3 Special 2 | . . . . . . . . . . . . . . . . . . . . . . . . . . . . . . 2 . . Combat Programmer 2 | . . . . . . . . . . . . . . . . . . . . . . . . . . . . . . . 2 . Investigator 2 | . . . . . . . . . . . . . . . . . . . . . . . . . . . . . . . 2 . Striker 8 | . . . . . . . . . . . . . . . . . . . . 1 . . . . . . . . 2 . 5 . Executioner 9 | . . . . . . . . . . . . . . . . . . . . 1 . . . . 1 . . . . . 7 . Alpha 7 3 | . . . . . . . . . . . . . . . . . . . . . . . . . . . . . 1 2 . . Scientist 2 | . . . . . . . . . 2 . . . . . . . . . . . . . . . . . . . . . . . Scrapper 3 | . . . . . . . . . 3 . . . . . . . . . . . . . . . . . . . . . . . Decomposer 1 | . . . . . . . . . . . . . . . . . . . . . 1 . . . . . . . . . . . Packrat 1 | . . . . . . . . . . . . . . . . 1 . . . . . . . . . . . . . . . . Samaritan 5 | . . . . . . . . . . . . . . . . . . . . . 4 1 . . . . . . . . . . Master Thief 1 | . . . . . . . . . . . . . . . . . . . . . . 1 . . . . . . . . . . Assembled 34 | . . 20 . 1 . . . . . . . . . . . . . . . . . . . . . . . . . . 13 . Savage 1 | . . . . . . . . . . . . . 1 . . . . . . . . . . . . . . . . . . . Best Kill Streak 38 | 3 5 20 11 4 . 4 11 . 5 8 2 3 4 8 6 1 4 . 4 10 2 3 . 3 2 3 7 5 5 20 38 4 Combat Bots Only 30 | . 4 20 6 4 . 4 4 . 3 8 2 2 2 6 6 1 4 . 4 7 2 3 . 3 3 3 3 5 3 16 30 4 Max Kills in Single Turn 10 | 1 2 10 5 1 . 3 3 . 1 1 1 1 1 4 1 1 2 . 1 2 1 1 . 1 1 2 1 1 1 1 5 1 Gunslinging . | . . . . . . . . . . . . . . . . . . . . . . . . . . . . . . . . . Exploded 10 | . . 10 3 . . 3 2 . . . . . . . . . . . . 1 . 1 . 1 . 1 . . . 1 3 . Melee 1 | . . . . . . . . . . . 1 . . . . . . . . . . . . . . . 1 1 . . 1 . Uniques/NPCs Destroyed 12 | . . . . 1 . . . . . . . 1 . . . . . . . . . . . . . 1 . . . . 2 7 YI-UF0 (-9/Mines) A7 (-6/Cetus) DW-4LL (-3/Quarantine) MAIN.C Shell (-1/Command) MAIN.C (-1/Command) A8 (-1/Access_0) A6 (-1/Access_0) A2 (-1/Access_0) A5 (-1/Access_0) A4 (-1/Access_0) A3 (-1/Access_0) Architect (-1/Access_0) Combat | -11 -10 -10 -9 -9 -9 -8 -8 -8 -8 -6 -6 -6 -6 -6 -5 -5 -5 -5 -4 -4 -4 -4 -4 -3 -3 -3 -3 -2 -2 -1 -1 -1 -------- Run | Yrd Mat Min Mat Min Exi Min Mat Sto Rec Fac Ext Cet Arc Hub Fac Upp Upp War Pro Fac Upp Upp Zhi Pro Res Qua Sec Res Tes Acc Com Ac0 Hostile Shots Fired 6288 | . 110 23 145 66 . 30 118 . 23 101 74 9 11 170 174 10 13 35 207 628 63 51 . 152 177 276 587 163 254 912 935 771 Missed 2203 | . 21 4 39 12 . 12 32 . 5 31 17 4 2 53 45 4 2 4 99 240 14 14 . 42 43 90 193 50 91 247 293 500 Intercepted 1 | . . . . . . . . . . . . . . . . . . . . . . . . . . . . . . . 1 . Hits 4085 | . 89 19 106 54 . 18 86 . 18 70 57 5 9 117 129 6 11 31 108 388 49 37 . 110 134 186 394 113 163 665 642 271 Melee 56 | . . . . . . . . . . . 2 . . . . . . . 1 2 1 5 . 1 . 3 1 . 2 11 25 2 Projectile 4029 | . 89 19 106 54 . 18 86 . 18 70 55 5 9 117 129 6 11 31 107 386 48 32 . 109 134 183 393 113 161 654 617 269 AOE 22 | . . 7 . 7 . . . . . . 1 . . 2 . . . . . . . . . . . . 1 . . 1 3 . Critical Strikes 235 | . 2 . 1 2 . . 4 . 4 3 3 2 . 9 5 . . 3 . 18 3 3 . 2 6 16 15 7 10 46 44 27 Actively Blocked 7 | . . . . . . . . . . . . . . . . . . . . 5 . . . . . 1 . . . . 1 . Part Disruptions 12 | . . . . . . . . . . . . . . . . . . . 1 1 . . . . . 1 1 1 . 1 6 . Damage Taken 74032 | . 966 542 1330 774 . 139 1401 . 357 1087 836 106 277 2244 2009 92 214 489 1138 8114 980 651 . 2682 2513 3059 5060 1660 3818 11898 15477 4119 Core 6605 | . 125 101 229 101 . 7 194 . 20 115 104 30 42 306 143 . 20 38 110 562 61 66 . 83 195 125 619 275 546 579 1434 375 Absorbed by Shields 14849 | . 18 22 . . . . . . . . 316 51 . . 62 35 . . 197 180 . . . 234 228 365 2124 771 357 3224 2710 3955 Redirected to Shielding 97 | . . . . . . 1 . . . . . . . . . . . . . . . . . . . 89 . . . . 7 . Ignored by Resistances 5472 | . . . . . . . . . . . . . . 134 658 . . . . . . . . . . 1171 1363 856 217 263 810 . Regen/Repaired (Parts) 50144 | . . . . . . . . . 90 344 983 30 44 232 2849 146 97 73 1345 4049 726 601 . 360 2496 991 2282 270 1746 9919 17650 2821 Core Remaining (%) 49 | 100 . 9 . . . 15 . . 61 . . . . 29 . . . . 68 . . . . 32 . . 45 . 57 . . 77 Volleys Fired 2615 | 12 65 16 121 38 . 14 69 2 90 13 73 44 45 75 124 17 36 3 58 147 43 44 9 99 63 91 90 31 129 290 414 250 Largest 3 | 2 2 2 2 2 . 2 2 2 2 3 1 1 1 1 1 1 1 1 1 1 1 1 1 2 2 2 1 1 1 1 1 1 Hottest 300 | 70 112 66 66 46 . 48 60 51 73 176 164 143 102 102 66 53 53 53 120 195 179 84 84 194 214 179 300 58 79 180 297 297 Shots Fired 3020 | 24 128 34 241 75 . 24 129 4 111 62 73 42 44 74 124 17 36 3 58 145 42 43 10 106 72 95 90 31 129 290 414 250 Gun 649 | 24 126 . 64 75 . 20 116 4 110 53 . 9 24 . . . . . . . . . . . . 15 1 8 . . . . Cannon 2306 | . 2 26 176 . . . . . 1 8 73 33 20 74 124 17 36 3 58 145 42 43 10 106 72 80 89 23 129 290 376 250 Launcher 65 | . . 8 1 . . 4 13 . . 1 . . . . . . . . . . . . . . . . . . . . 38 . Special . | . . . . . . . . . . . . . . . . . . . . . . . . . . . . . . . . . Kinetic 1590 | 12 29 26 240 75 . 20 116 4 48 4 12 12 33 39 117 17 36 . 7 38 41 15 9 52 4 51 61 2 24 180 199 67 Thermal 937 | 12 99 . . . . . . . . 49 14 . . 35 . . . 3 51 39 1 28 1 51 17 29 28 . 105 110 165 100 Explosive 65 | . . 8 1 . . 4 13 . . 1 . . . . . . . . . . . . . . . . . . . . 38 . Electromagnetic 316 | . . . . . . . . . 63 8 47 30 11 . 7 . . . . 68 . . . 3 51 . 1 21 . . 6 . Impact 112 | . . . . . . . . . . . . . . . . . . . . . . . . . . 15 . 8 . . 6 83 Robot Hit Streak 53 | 5 10 5 21 11 . 11 26 8 12 20 11 9 8 10 19 7 9 . 11 22 6 9 18 19 8 12 13 5 7 18 53 13 Robot Miss Streak 13 | 2 6 3 4 2 . 4 3 1 6 2 5 4 2 5 6 2 1 . 3 4 3 5 . 8 4 6 3 3 3 4 13 8 Penetration Max 3 | . . . . . . . . . . . . 1 1 1 . . 1 . . 1 . . . . . 1 2 . . 1 3 . Secondary Targets 6 | . 2 . 1 1 . . 2 . . . . . . . . . . . . . . . . . . . . . . . . . Max Gunslinging Chain 1 | . 1 . 1 1 . . 1 . . . . . . . . . . . . . . . . . . . . . . . . . Autonomous 41 | . . . . . . . . . . 41 . . . . . . . . . . . . . . . . . . . . . . Shots Hit Robots 2110 | 14 73 13 134 50 . 14 94 3 86 52 46 28 31 54 91 8 24 . 40 116 37 29 9 75 43 59 110 25 63 186 295 208 Core Hits 1598 | 6 33 40 63 21 . 15 50 . 38 32 16 14 16 32 49 3 12 . 20 74 20 19 1 37 19 20 41 10 26 75 667 129 Critical Kills 146 | . . . . . . . . . 1 . . . 3 3 . . 2 . 3 . . . . . . . 4 . . 2 128 . Critical Parts Destroyed 188 | . . . . 1 . . 1 . . . . . 1 1 1 . 1 . . 1 . . . . . . . 1 . 6 174 . Critical Strikes 395 | 1 4 1 10 1 . . 1 . 1 . . . 4 4 1 . 3 . 3 1 . . . . 1 . 11 1 . 15 331 1 Burn 12 | 1 4 . . . . . . . . . . . . . . . . . . . . . . . . . . . . 7 . . Meltdown 2 | . . . . . . . . . . . . . . . . . . . . . . . . . . . . . . . 2 . Destroy 361 | . . . . 1 . . 1 . 1 . . . 4 4 1 . 3 . 3 1 . . . . . . 4 1 . 8 329 . Blast 12 | . . 1 10 . . . . . . . . . . . . . . . . . . . . . . . . . . . . 1 Corrupt 1 | . . . . . . . . . . . . . . . . . . . . . . . . . 1 . . . . . . . Sever 7 | . . . . . . . . . . . . . . . . . . . . . . . . . . . 7 . . . . . Melee Attacks 97 | . . . . . . . . . . . . . . . . . . . . . . . . . . . 90 7 . . . . Impact . | . . . . . . . . . . . . . . . . . . . . . . . . . . . . . . . . . Slashing 97 | . . . . . . . . . . . . . . . . . . . . . . . . . . . 90 7 . . . . Piercing . | . . . . . . . . . . . . . . . . . . . . . . . . . . . . . . . . . Sneak Attacks 6 | . . . . . . . . . . . . . . . . . . . . . . . . . . . 5 1 . . . . Combat Hostiles . | . . . . . . . . . . . . . . . . . . . . . . . . . . . . . . . . . Follow-up Attacks . | . . . . . . . . . . . . . . . . . . . . . . . . . . . . . . . . . Damage Inflicted 177686 | 183 1008 1390 2984 777 . 717 2771 50 1635 1400 2154 770 1168 5106 7300 680 2487 20 3691 7869 1561 1470 502 3017 1970 3909 8172 2706 9962 21996 35646 42615 Guns 9101 | 183 1008 . 653 777 . 253 1515 50 1508 1186 . 184 461 . . . . . . . . . . . . 925 10 388 . . . . Cannons 145307 | . . 244 2135 . . . . . 10 199 2088 586 707 4838 7156 680 2487 . 3691 7375 1417 1007 502 2683 1970 2801 2993 1827 9829 21967 23500 42615 Explosions 17012 | . . 1146 188 . . 464 1256 . 117 . . . . 257 2 . . . . 463 144 463 . 334 . 103 . . . . 12075 . Melee 5660 | . . . . . . . . . . . . . . . . . . . . . . . . . . . 5169 491 . . . . Ramming 606 | . . . 8 . . . . . . 15 66 . . 11 142 . . 20 . 31 . . . . . 80 . . 133 29 71 . Kinetic 72397 | 57 152 244 2788 777 . 253 1515 50 657 39 407 223 931 2545 6867 680 2487 . 469 1930 1334 382 502 1194 186 2534 2454 48 1985 14714 13553 10440 Thermal 59189 | 126 856 . . . . . . . 117 1147 348 . . 2293 2 . . . 3222 2447 147 1088 . 1718 743 267 549 . 7844 7253 9560 19462 Explosive 15319 | . . 1146 188 . . 464 1256 . . . . . . . . . . . . 87 . . . . . 103 . . . . 12075 . Electromagnetic 10489 | . . . . . . . . . 861 199 1333 547 237 257 289 . . . . 3374 80 . . 105 1041 . . 1779 . . 387 . Impact 14026 | . . . . . . . . . . . . . . . . . . . . . . . . . . 925 . 388 . . . 12713 Slashing 5660 | . . . . . . . . . . . . . . . . . . . . . . . . . . . 5169 491 . . . . Piercing . | . . . . . . . . . . . . . . . . . . . . . . . . . . . . . . . . . Highest Corruption 32 | . 2 2 . . . . . . . 15 15 15 15 16 5 . . . . 29 29 30 30 32 . 26 . . . . . . Average Corruption 21 | . 2 2 . . . . . . . 11 15 15 10 10 3 . . . . 13 29 29 30 31 . 15 . . . . . . Corruption Purged 22 | . . . . . . . . . . . . . 15 . 7 . . . . . . . . . . . . . . . . . Corruption Blocked . | . . . . . . . . . . . . . . . . . . . . . . . . . . . . . . . . . Effects 581 | . 1 6 . . . . . . . 5 70 18 10 12 24 . . . . 46 115 99 32 123 . 20 . . . . . . Message Errors 149 | . . 1 . . . . . . . 1 24 4 1 2 5 . . . . 10 30 30 5 30 . 6 . . . . . . Matter Fused 155 | . 1 . . . . . . . . . 20 3 2 3 7 . . . . 13 36 29 8 29 . 4 . . . . . . Heat Flow Errors 62 | . . 1 . . . . . . . . 10 2 1 2 5 . . . . 4 11 6 5 14 . 1 . . . . . . Energy Discharges 72 | . . 1 . . . . . . . 2 6 1 2 . 4 . . . . 5 13 17 5 14 . 2 . . . . . . Parts Rejected 5 | . . . . . . . . . . . . . . . . . . . . 2 1 1 . 1 . . . . . . . . Parts Fused 9 | . . . . . . . . . . . 2 1 1 1 1 . . . . . 2 1 . . . . . . . . . . Data Loss (minor) 65 | . . . . . . . . . . 2 4 3 . 1 1 . . . . 6 15 6 7 18 . 2 . . . . . . Data Loss (major) 23 | . . 1 . . . . . . . . 1 1 . 1 1 . . . . 2 4 6 . 6 . . . . . . . . Misfires 4 | . . 2 . . . . . . . . . . 1 . . . . . . . . . 1 . . . . . . . . . Alerts 12 | . . . . . . . . . . . 2 1 . . . . . . . 1 2 2 1 3 . . . . . . . . Misdirections 8 | . . . . . . . . . . . 1 . . 1 . . . . . 1 . . . 4 . 1 . . . . . . Weapon Failures 17 | . . . . . . . . . . . . 2 2 1 . . . . . 2 1 1 . 4 . 4 . . . . . . Overload Shots . | . . . . . . . . . . . . . . . . . . . . . . . . . . . . . . . . . Overflow Damage 20551 | . . 67 40 . . 28 30 . . . 106 26 88 232 562 177 218 . 195 248 200 98 3 57 . 201 882 439 2847 3910 4635 5262 Projectiles 18134 | . . . 32 . . . . . . . 75 26 88 232 562 177 218 . 195 232 200 38 3 57 . 201 95 331 2828 3910 3372 5262 Explosions 1444 | . . 67 8 . . 28 30 . . . . . . . . . . . . . . 60 . . . . . . . . 1251 . Melee 973 | . . . . . . . . . . . 31 . . . . . . . . 16 . . . . . . 787 108 19 . 12 . Knockbacks 485 | . . 3 11 . . . . . 1 . 2 . 1 7 45 3 10 . 3 23 12 7 . 10 . 23 13 2 8 58 123 120 Impact 71 | . . . . . . . . . . . . . . . 4 . . . . . . . . . . 7 . 1 1 . . 58 Kinetic 391 | . . 3 11 . . . . . 1 . 2 . 1 7 40 3 8 . 3 18 11 6 . 10 . 15 13 . 6 54 117 62 Secondary 23 | . . . . . . . . . . . . . . . 1 . 2 . . 5 1 1 . . . 1 . 1 1 4 6 . Self-Inflicted Damage 2128 | . . 139 . . . . 47 . . . . . . 89 . . . . . 258 . 70 . 237 . . . . 26 . 1262 . Shots 27 | . . 4 . . . . 3 . . . . . . 1 . . . . . 4 . 1 . 3 . . . . . . 11 . Rammed 17 | . . . 1 . . . . . . 1 . . . . 10 . . . . 1 . . . . . . . . 1 . 3 . Targets Rammed 32 | . . . 1 . . . . . . 1 2 . . 1 12 . . 3 . 1 . . . . . 4 . . 3 1 3 . Kicked 10 | . . . . . . . . . . . . . . . . . . 3 . . . . . . . 4 . . 2 1 . . Crushed 5 | . . . . . . . . . . . 2 . . 1 2 . . . . . . . . . . . . . . . . . Highest Temperature 491 | 100 340 277 174 20 . . 35 10 291 336 416 421 230 251 449 56 45 122 408 420 254 336 225 408 359 290 353 247 421 491 454 362 Average Temperature 121 | 47 76 140 33 5 . . 10 7 109 115 126 171 101 102 65 20 30 51 102 144 111 87 97 188 139 75 127 91 110 122 129 103 Received Heat Transfer 7862 | . 420 50 561 177 . . 648 . 276 505 161 . 27 156 700 12 81 270 118 234 168 130 . 568 115 171 551 82 226 521 825 109 Effects 107 | . 3 . . . . . . . . . 3 1 . . 1 . . . 2 5 2 . . 24 1 . 9 . 8 6 38 4 Shutdowns 11 | . . . . . . . . . . . . 1 . . 1 . . . 1 3 . . . . . . 1 . 1 . 2 1 Energy Bleed 29 | . 1 . . . . . . . . . 2 . . . . . . . 1 1 2 . . 8 1 . 2 . 1 3 6 1 Interference 52 | . 2 . . . . . . . . . . . . . . . . . . . . . . 11 . . 6 . 5 2 24 2 Matter Decay 5 | . . . . . . . . . . . . . . . . . . . . 1 . . . 3 . . . . . . 1 . Short Circuit 6 | . . . . . . . . . . . 1 . . . . . . . . . . . . 1 . . . . 1 . 3 . Damage (minor) 4 | . . . . . . . . . . . . . . . . . . . . . . . . 1 . . . . . 1 2 . Siege Activations 1 | . . . . . . . . . . . . . . . . . . . . . . . . . . . . . . 1 . . Total Turns 1 | . . . . . . . . . . . . . . . . . . . . . . . . . . . . . . 1 . . Longest Duration 1 | . . . . . . . . . . . . . . . . . . . . . . . . . . . . . . 1 . . Martial Activations . | . . . . . . . . . . . . . . . . . . . . . . . . . . . . . . . . . Shielding Activations . | . . . . . . . . . . . . . . . . . . . . . . . . . . . . . . . . . Robots Disrupted 1 | . . . . . . . . . . . . . . . . . . . . . . . . 1 . . . . . . . . Combat Hostiles 1 | . . . . . . . . . . . . . . . . . . . . . . . . 1 . . . . . . . . Robots Corrupted 46 | . . . . . . . . . 2 1 6 3 1 . . . . . . 12 . . . . 5 1 . 3 2 1 3 6 Combat Hostiles 38 | . . . . . . . . . . 1 6 3 1 . . . . . . 11 . . . . 5 1 . 2 . . 2 6 Parts Fried 139 | . . . . . . . . . 8 3 13 6 3 1 2 . . . . 33 4 . . 1 12 1 . 14 4 1 12 21 Impact Corruptions 73 | . . . . . . . . . . . 1 . . . . . . . . 1 . . . . . 9 . 3 2 2 2 53 Robots Melted 3 | . . . . . . . . . . . . . . . . . . . . 1 . . . . . . . . . . 2 . Combat Hostiles 3 | . . . . . . . . . . . . . . . . . . . . 1 . . . . . . . . . . 2 . Parts Melted 22 | . 3 . . . . . . . 3 2 1 . . . . . . . 3 2 . . . . . 1 . . 2 1 2 2 Heat Transferred 22277 | 444 2331 . . . . . . . 150 1475 . . . 174 50 . . . 1700 1262 50 300 . 100 481 194 432 . 2035 3734 4298 3067 Parts Sabotaged 2 | . . . . . . . . . . . . . . . . . . . 1 . . . . . . . . . 1 . . . Parts Stolen 4 | . . . . . . . . . . . . . . . . . . . . . . 4 . . . . . . . . . . Parts Stripped . | . . . . . . . . . . . . . . . . . . . . . . . . . . . . . . . . . Power Chain Reactions 16 | . . . . . . . . . 3 . . . . 1 . . . . . 3 3 3 . 3 . . . . . . . . Alert | -11 -10 -10 -9 -9 -9 -8 -8 -8 -8 -6 -6 -6 -6 -6 -5 -5 -5 -5 -4 -4 -4 -4 -4 -3 -3 -3 -3 -2 -2 -1 -1 -1 ------- Run | Yrd Mat Min Mat Min Exi Min Mat Sto Rec Fac Ext Cet Arc Hub Fac Upp Upp War Pro Fac Upp Upp Zhi Pro Res Qua Sec Res Tes Acc Com Ac0 Maximum Alert Level 5 | . 1 . 2 1 . . 1 . . 1 2 2 1 3 4 . . . . 3 . . . . 3 2 3 2 3 5 5 . Low Security (%) 33 | 100 95 100 29 82 . 100 70 100 100 30 17 . 77 21 . . . . . 56 . . . . . 62 58 . 53 . . . Level 1 13 | . 4 . 30 17 . . 29 . . 69 60 78 22 22 42 . . . . 6 . . . . . 7 17 87 18 . . . Level 2 8 | . . . 39 . . . . . . . 22 21 . 24 18 . . . . 20 . . . . . 30 22 12 23 24 . . Level 3 6 | . . . . . . . . . . . . . . 32 36 . . . . 16 . . . . 100 . . . 5 5 . . Level 4 3 | . . . . . . . . . . . . . . . 2 . . . . . . . . . . . . . . 55 4 . Level 5 15 | . . . . . . . . . . . . . . . . . . . . . . . . . . . . . . 7 44 . High Security 18 | . . . . . . . . . . . . . . . . . . . . . . . . . . . . . . 7 51 . Max Security . | . . . . . . . . . . . . . . . . . . . . . . . . . . . . . . . . . Peak Influence 6363 | 10 225 46 687 349 . 110 259 89 60 309 630 447 321 804 1106 . . . . 797 . . . . 1023 495 711 547 880 1938 6363 . Initial 1233 | . . 44 13 264 . . 1 89 . 309 63 343 146 . 383 . . . . 52 . . . . 947 431 87 392 307 525 1233 . Average 1544 | 1 96 17 331 91 . 38 134 42 7 225 327 356 107 473 575 . . . . 293 . . . . 864 200 227 361 263 1195 5213 . Influence Increases 27314 | 15 658 128 1358 246 . 322 657 5 428 659 1342 285 287 1167 1325 55 340 . 410 1368 100 175 5 310 1442 642 1133 395 1469 2339 6648 1601 Destroy 0b10 Robot/C 12920 | . 420 60 760 200 . 240 360 . 80 220 680 140 80 460 560 40 240 . 340 760 80 140 . 240 240 180 520 200 560 1300 3820 . Destroy 0b10 Robot/NC 1030 | 15 15 . 75 5 . 20 55 . 100 5 45 10 30 45 40 5 . . 15 70 10 5 5 15 . 15 45 20 45 90 230 . Destroy Leader 2304 | . 90 20 160 20 . 30 112 . . 32 76 . . 124 164 10 40 . 40 152 10 30 . 40 80 22 144 34 74 220 580 . Allied During Kill 1251 | . . . . . . . . . . . 415 104 110 112 . . . . . . . . . . . . . . 6 . 504 . Successful Hack 647 | . 28 . 17 6 . . 6 5 40 . 7 . . 62 41 . . . . 19 . . . . 138 46 14 42 158 18 . . Select Force Hacks 240 | . 60 . 30 . . . . . 150 . . . . . . . . . . . . . . . . . . . . . . . Disable Machine 1530 | . 15 . 90 . . . 15 . 45 15 75 15 60 120 150 . . . . 150 . . . . 60 75 120 15 150 45 150 165 Anti-Garrison Action 50 | . . . . . . . . . . . . . . . . . . . . . . . . . . . . . . . 50 . Destroy Structure 4357 | . . 33 76 . . 32 64 . 13 12 14 16 7 169 370 . . . . 202 . . . . 24 124 170 24 161 351 1059 1436 Advance Influence 1200 | . . . . . . . . . . 300 . . . . . . . . . . . . . . 900 . . . . . . . Partial Spotted 135 | . . . 60 . . . . . . . . . . . . . . . . . . . . . . . . . . 60 15 . Lose Combat Pursuer 1650 | . 30 15 90 15 . . 45 . . 75 30 . . 75 . . 60 . 15 15 . . . 15 . 180 120 60 315 255 240 . Influence Decreases 25713 | 15 543 207 715 925 . 318 448 218 405 552 858 533 653 383 1015 904 541 44 326 679 873 175 5 239 746 1254 590 546 1140 1287 1914 6662 Entered New Map 11107 | . . 71 23 415 . . 3 124 . 14 67 271 220 . 401 406 47 44 . 32 287 . . . 24 336 68 306 240 351 695 6662 Time Decay 11641 | 15 523 96 622 460 . 318 385 94 391 428 571 222 433 310 604 498 494 . 326 537 586 175 5 229 562 321 498 230 593 556 559 . Search Patrol Dispatched 200 | . . . . . . . . . . 100 . . . . . . . . . . . . . . . 100 . . . . . . Lost Part 637 | . 20 40 70 50 . . 60 . . 10 . . . 10 10 . . . . 110 . . . 10 10 47 20 10 . 60 100 . Lost Ally 923 | . . . . . . . . . . . 220 40 . 63 . . . . . . . . . . . . . . 20 20 560 . Purge Threat 1205 | . . . . . . . . . 14 . . . . . . . . . . . . . . . 150 450 4 . 287 300 . . Squads Dispatched 143 | . 5 . 6 . . . 4 . . 3 4 . . 6 6 . . . . 13 . . . . 11 5 9 3 11 16 41 . Investigation 12 | . 2 . 3 . . . . . . . 1 . . 1 . . . . . 2 . . . . 2 . . 1 . . . . Extermination 36 | . . . . . . . . . . 2 . . . 1 5 . . . . 4 . . . . . 3 3 1 7 5 5 . Reinforcement 45 | . 3 . 2 . . . 4 . . 1 2 . . 4 1 . . . . 4 . . . . 9 2 5 1 2 5 . . Assault 50 | . . . 1 . . . . . . . 1 . . . . . . . . 3 . . . . . . 1 . 2 6 36 . Garrison . | . . . . . . . . . . . . . . . . . . . . . . . . . . . . . . . . . Intercept . | . . . . . . . . . . . . . . . . . . . . . . . . . . . . . . . . . Searches Triggered 2 | . . . . . . . . . . 1 . . . . . . . . . . . . . . . 1 . . . . . . Unchained Authorized 2 | . . . . . . . . . . . . . . . . . . . . . . . . . . 1 . . . 1 . . Construction Impeded 6 | . . . . . . . 1 . . . . . . . 1 . . . . 1 . . . . . . . . 1 2 . . Haulers Reinforced 6 | . . . . . . . . . . . . . . . . . . . . . . . . . 3 . 1 . . 2 . . Active Scanning Responses . | . . . . . . . . . . . . . . . . . . . . . . . . . . . . . . . . . Cargo Convoy Interrupts 1 | . . . . . . . . . . . . . . . . . . . . 1 . . . . . . . . . . . . Stealth | -11 -10 -10 -9 -9 -9 -8 -8 -8 -8 -6 -6 -6 -6 -6 -5 -5 -5 -5 -4 -4 -4 -4 -4 -3 -3 -3 -3 -2 -2 -1 -1 -1 --------- Run | Yrd Mat Min Mat Min Exi Min Mat Sto Rec Fac Ext Cet Arc Hub Fac Upp Upp War Pro Fac Upp Upp Zhi Pro Res Qua Sec Res Tes Acc Com Ac0 Distress Signals 63 | . 2 . 8 . . . 4 . . 1 1 2 . 5 . . . . . 2 . . . 1 4 . 5 . 2 6 20 . Communications Jammed 45 | . . . . . . . . . . . . . . . . . . . . 2 . . . . . . . 8 . 35 . . Distress Signals 45 | . . . . . . . . . . . . . . . . . . . . 2 . . . . . . . 8 . 35 . . Times Spotted 1118 | . 31 27 55 12 . 12 30 . 6 16 35 10 21 34 34 2 15 12 22 65 4 12 . 21 14 29 53 30 64 106 270 76 Peak Tracking Total 20 | . 4 20 6 4 . 4 5 . 4 8 5 5 2 9 3 1 4 12 7 13 4 4 . 4 3 13 8 17 16 12 16 4 Tactical Retreats 70 | . 2 1 6 2 . . 3 . . 2 2 . . 4 . . 1 . 1 1 . . . 1 . 4 5 1 8 10 16 . Traps | -11 -10 -10 -9 -9 -9 -8 -8 -8 -8 -6 -6 -6 -6 -6 -5 -5 -5 -5 -4 -4 -4 -4 -4 -3 -3 -3 -3 -2 -2 -1 -1 -1 ------- Run | Yrd Mat Min Mat Min Exi Min Mat Sto Rec Fac Ext Cet Arc Hub Fac Upp Upp War Pro Fac Upp Upp Zhi Pro Res Qua Sec Res Tes Acc Com Ac0 Traps Triggered 23 | . 2 . 2 . . . . 2 . 4 2 . . 1 1 . . . . . . . . . 1 1 . . 2 1 4 . Indirectly 1 | . . . . . . . . . . . . . . 1 . . . . . . . . . . . . . . . . . . Trap Hack Attempts . | . . . . . . . . . . . . . . . . . . . . . . . . . . . . . . . . . Triggered . | . . . . . . . . . . . . . . . . . . . . . . . . . . . . . . . . . Disarmed . | . . . . . . . . . . . . . . . . . . . . . . . . . . . . . . . . . Reprogrammed . | . . . . . . . . . . . . . . . . . . . . . . . . . . . . . . . . . Reused . | . . . . . . . . . . . . . . . . . . . . . . . . . . . . . . . . . Traps Extracted . | . . . . . . . . . . . . . . . . . . . . . . . . . . . . . . . . . Installed . | . . . . . . . . . . . . . . . . . . . . . . . . . . . . . . . . . Triggered . | . . . . . . . . . . . . . . . . . . . . . . . . . . . . . . . . . Machines | -11 -10 -10 -9 -9 -9 -8 -8 -8 -8 -6 -6 -6 -6 -6 -5 -5 -5 -5 -4 -4 -4 -4 -4 -3 -3 -3 -3 -2 -2 -1 -1 -1 ---------- Run | Yrd Mat Min Mat Min Exi Min Mat Sto Rec Fac Ext Cet Arc Hub Fac Upp Upp War Pro Fac Upp Upp Zhi Pro Res Qua Sec Res Tes Acc Com Ac0 Machines Disabled 112 | . 1 . 6 . . . 1 . 3 1 7 1 4 8 10 . . . . 10 . . . . 4 5 8 1 11 3 12 16 Max in Single Turn 5 | . 1 . 2 . . . 1 . 1 1 1 1 1 5 3 . . . . 5 . . . . 1 1 1 1 1 1 2 2 Phase Generator 1 | . . . . . . . . . . . . . . . . . . . . . . . . . . . . . . . 1 . Network Hub 2 | . . . . . . . . . . . . . . 2 . . . . . . . . . . . . . . . . . . Machines Repaired . | . . . . . . . . . . . . . . . . . . . . . . . . . . . . . . . . . Machines Dismantled 6 | . . . . . . . . . . 1 4 1 . . . . . . . . . . . . . . . . . . . . Machines Sabotaged . | . . . . . . . . . . . . . . . . . . . . . . . . . . . . . . . . . Overloaded Fab Kills . | . . . . . . . . . . . . . . . . . . . . . . . . . . . . . . . . . Hacking | -11 -10 -10 -9 -9 -9 -8 -8 -8 -8 -6 -6 -6 -6 -6 -5 -5 -5 -5 -4 -4 -4 -4 -4 -3 -3 -3 -3 -2 -2 -1 -1 -1 --------- Run | Yrd Mat Min Mat Min Exi Min Mat Sto Rec Fac Ext Cet Arc Hub Fac Upp Upp War Pro Fac Upp Upp Zhi Pro Res Qua Sec Res Tes Acc Com Ac0 Machines Accessed 130 | . 7 . 8 1 1 . 3 2 13 3 10 2 . 5 9 . . . . 5 . 2 7 . 8 7 8 6 14 6 1 2 Terminals 84 | . 5 . 5 1 . . 2 2 6 2 10 2 . 5 5 . . . . 3 . 1 . . 4 6 8 4 9 3 1 . Fabricators 8 | . . . . . . . . . . . . . . . 2 . . . . 1 . . . . 1 . . . 2 2 . . Repair Stations 3 | . . . . . . . . . . . . . . . . . . . . 1 . . . . 2 . . . . . . . Recycling Units 10 | . 2 . 1 . . . . . 6 . . . . . . . . . . . . . . . . . . 1 . . . . Scanalyzers 12 | . . . 2 . . . 1 . . 1 . . . . 1 . . . . . . . . . 1 1 . 1 3 1 . . Garrison Access 1 | . . . . . . . . . . . . . . . 1 . . . . . . . . . . . . . . . . . Total Hacks 498 | . 24 . 25 6 1 . 19 8 44 7 16 4 . 11 42 . . . . 23 . 3 46 . 38 36 28 25 54 17 1 20 Successful 246 | . 12 . 19 3 1 . 11 3 28 1 1 1 . 4 17 . . . . 6 . 3 46 . 14 11 6 9 25 5 . 20 Failed 249 | . 12 . 5 2 . . 7 5 16 6 15 3 . 7 25 . . . . 17 . . . . 24 25 22 16 29 12 1 . Catastrophic 58 | . . . . . . . . 1 2 . 6 1 . 2 7 . . . . 4 . . . . 8 7 6 4 6 3 1 . Database Lockouts 3 | . . . 1 1 . . 1 . . . . . . . . . . . . . . . . . . . . . . . . . Manual 220 | . 19 . 12 7 1 . 7 5 23 5 5 1 . 6 18 . . . . 17 . . . . 9 19 20 14 27 5 . . Terminals 314 | . 22 . 14 6 . . 7 8 25 5 16 4 . 11 24 . . . . 14 . 2 . . 20 34 28 21 41 11 1 . Fabricators 30 | . . . . . . . . . . . . . . . 5 . . . . 6 . . . . 7 . . . 7 5 . . Repair Stations 10 | . . . . . . . . . . . . . . . . . . . . 3 . . . . 7 . . . . . . . Recycling Units 22 | . 2 . 1 . . . . . 17 . . . . . . . . . . . . . . . . . . 2 . . . . Scanalyzers 51 | . . . 10 . . . 12 . . 2 . . . . 12 . . . . . . . . . 4 2 . 2 6 1 . . Garrison Access 1 | . . . . . . . . . . . . . . . 1 . . . . . . . . . . . . . . . . . Terminal Hacks 125 | . 3 . 1 3 1 . . 2 9 . 1 1 . 1 4 . . . . 1 . 3 46 . 3 6 5 3 9 3 . 20 Record 54 | . . . . . . . . . . . . 1 . . . . . . . . . 2 34 . . . . . . . . 17 Part Schematic 8 | . . . . . . . . . 2 . . . . . 2 . . . . . . . 4 . . . . . . . . . Robot Schematic 1 | . 1 . . . . . . . . . . . . . . . . . . . . . . . . . . . . . . . Robot Analysis 9 | . 2 . . 3 . . . . . . . . . . . . . . . . . . 4 . . . . . . . . . Prototype ID Bank 9 | . . . 1 . . . . 1 3 . . . . . . . . . . . . . 4 . . . . . . . . . Open Door 3 | . . . . . . . . . . . 1 . . . . . . . . . . 1 . . . . 1 . . . . . Branch Access Points 5 | . . . . . . . . . . . . . . . 1 . . . . 1 . . . . 1 . . 1 . 1 . . Terminal Index 2 | . . . . . . . . . . . . . . . . . . . . . . . . . . 1 . . 1 . . . Alert Level 5 | . . . . . . . . . . . . . . . . . . . . . . . . . 1 1 1 . 2 . . . Unreport Threat 10 | . . . . . . . . . 1 . . . . . . . . . . . . . . . 1 3 1 . 2 2 . . Locate Traps 2 | . . . . . . . . . . . . . . . . . . . . . . . . . . . 1 . 1 . . . Zone Layout 11 | . . . . . . . . 1 1 . . . . 1 1 . . . . . . . . . . 1 1 2 3 . . . Proto ID Catalog 1 | . . . . . 1 . . . . . . . . . . . . . . . . . . . . . . . . . . . Release Object 2 | . . . . . . . . . 2 . . . . . . . . . . . . . . . . . . . . . . . Gate Test 138-A 1 | . . . . . . . . . . . . . . . . . . . . . . . . . . . . . . . . 1 Gate Test 138-B 1 | . . . . . . . . . . . . . . . . . . . . . . . . . . . . . . . . 1 Gate Test 138-END 1 | . . . . . . . . . . . . . . . . . . . . . . . . . . . . . . . . 1 Fabricator Hacks 8 | . . . . . . . . . . . . . . . 2 . . . . 2 . . . . 2 . . . 1 1 . . Load Schematic 3 | . . . . . . . . . . . . . . . 1 . . . . 1 . . . . 1 . . . . . . . Build 5 | . . . . . . . . . . . . . . . 1 . . . . 1 . . . . 1 . . . 1 1 . . Repair Station Hacks 5 | . . . . . . . . . . . . . . . . . . . . 2 . . . . 3 . . . . . . . Scan Component 3 | . . . . . . . . . . . . . . . . . . . . 1 . . . . 2 . . . . . . . Repair 2 | . . . . . . . . . . . . . . . . . . . . 1 . . . . 1 . . . . . . . Recycling Unit Hacks 5 | . . . . . . . . . 4 . . . . . . . . . . . . . . . . . . 1 . . . . Retrieve Components 5 | . . . . . . . . . 4 . . . . . . . . . . . . . . . . . . 1 . . . . Scanalyzer 36 | . . . 9 . . . 9 . . 1 . . . . 9 . . . . . . . . . 2 . . 2 4 . . . Insert Component 12 | . . . . . . . 4 . . . . . . . 4 . . . . . . . . . 1 . . . 3 . . . Analyze 6 | . . . . . . . 4 . . . . . . . 2 . . . . . . . . . . . . . . . . . Retrieve Study 18 | . . . 9 . . . 1 . . 1 . . . . 3 . . . . . . . . . 1 . . 2 1 . . . Garrison Access Hacks . | . . . . . . . . . . . . . . . . . . . . . . . . . . . . . . . . . Unauthorized Hacks 66 | . 9 . 9 . . . 2 1 15 . . . . 3 2 . . . . 1 . . . . 4 5 1 3 10 1 . . Terminals 54 | . 7 . 8 . . . 2 1 8 . . . . 3 2 . . . . . . . . . 4 5 1 3 9 1 . . Track 9 | . . . . . . . . 1 . . . . . 1 1 . . . . . . . . . 1 2 1 2 . . . . Assimilate 1 | . . . . . . . . . . . . . . . . . . . . . . . . . . 1 . . . . . . Botnet 17 | . 2 . 2 . . . . . 3 . . . . 1 1 . . . . . . . . . 2 2 . 1 3 . . . Disrupt 1 | . . . . . . . . . . . . . . . . . . . . . . . . . . . . . . 1 . . Operators 3 | . . . 1 . . . . . . . . . . . . . . . . . . . . . 1 . . . 1 . . . Skim 22 | . 5 . 5 . . . 2 . 5 . . . . . . . . . . . . . . . . . . . 5 . . . Sabotage 1 | . . . . . . . . . . . . . . 1 . . . . . . . . . . . . . . . . . . Fabricators 2 | . . . . . . . . . . . . . . . . . . . . 1 . . . . . . . . 1 . . . Prioritize 2 | . . . . . . . . . . . . . . . . . . . . 1 . . . . . . . . 1 . . . Repair Stations . | . . . . . . . . . . . . . . . . . . . . . . . . . . . . . . . . . Recycling Units 10 | . 2 . 1 . . . . . 7 . . . . . . . . . . . . . . . . . . . . . . . Mask 2 | . . . . . . . . . 2 . . . . . . . . . . . . . . . . . . . . . . . Tunnel 8 | . 2 . 1 . . . . . 5 . . . . . . . . . . . . . . . . . . . . . . . Scanalyzers . | . . . . . . . . . . . . . . . . . . . . . . . . . . . . . . . . . Garrison Access . | . . . . . . . . . . . . . . . . . . . . . . . . . . . . . . . . . Data Cores Recovered 2 | . . . . . . . . . . . . . . 1 . . . . . . . . . . . . . . . . 1 . Used . | . . . . . . . . . . . . . . . . . . . . . . . . . . . . . . . . . Hacking Detections 101 | . 5 . 7 1 . . 3 2 7 3 9 1 . 5 9 . . . . 5 . . . . 8 7 7 4 12 5 1 . Full Trace Events 6 | . . . . . . . . . 1 . 1 . . . . . . . . 2 . . . . 1 . . 1 . . . . Feedback Events . | . . . . . . . . . . . . . . . . . . . . . . . . . . . . . . . . . Feedback Blocked . | . . . . . . . . . . . . . . . . . . . . . . . . . . . . . . . . . Robot Schematics Acquired 1 | . 1 . . . . . . . . . . . . . . . . . . . . . . . . . . . . . . . Robots Built 2 | . . . . . . . . . . . . . . . . . . . . . . . . . . . . . . 2 . . Authchips . | . . . . . . . . . . . . . . . . . . . . . . . . . . . . . . . . . Time 111 | . . . . . . . . . . . . . . . . . . . . . . . . . . . . . . 111 . . Total Robot Build Rating 18 | . . . . . . . . . . . . . . . . . . . . . . . . . . . . . . 18 . . Part Schematics Acquired 13 | . . . . . . . 4 . 2 . . . . . 3 . . . . . . . 4 . . . . . . . . . Parts Built 7 | . . . . . . . . . . . . . . . 2 . . . . 2 . . . . 2 . . . 1 . . . Authchips . | . . . . . . . . . . . . . . . . . . . . . . . . . . . . . . . . . Time 253 | . . . . . . . . . . . . . . . 64 . . . . 47 . . . . 31 . . . 111 . . . Total Part Build Rating 45 | . . . . . . . . . . . . . . . 16 . . . . 10 . . . . 10 . . . 9 . . . Part Studies Acquired 16 | . . . 7 . . . 1 . . 1 . . . . 3 . . . . . . . . . 1 . . 2 1 . . . Parts Repaired 2 | . . . . . . . . . . . . . . . . . . . . 1 . . . . 1 . . . . . . . Time 121 | . . . . . . . . . . . . . . . . . . . . 108 . . . . 13 . . . . . . . Parts Recycled . | . . . . . . . . . . . . . . . . . . . . . . . . . . . . . . . . . Recycled Matter . | . . . . . . . . . . . . . . . . . . . . . . . . . . . . . . . . . Retrieved Matter . | . . . . . . . . . . . . . . . . . . . . . . . . . . . . . . . . . Retrieved Components 10 | . . . . . . . . . 10 . . . . . . . . . . . . . . . . . . . . . . . Parts Scanalyzed 6 | . . . . . . . 4 . . . . . . . 2 . . . . . . . . . . . . . . . . . Part Schematics Acquired 5 | . . . . . . . 4 . . . . . . . 1 . . . . . . . . . . . . . . . . . Parts Damaged . | . . . . . . . . . . . . . . . . . . . . . . . . . . . . . . . . . Bothacking | -11 -10 -10 -9 -9 -9 -8 -8 -8 -8 -6 -6 -6 -6 -6 -5 -5 -5 -5 -4 -4 -4 -4 -4 -3 -3 -3 -3 -2 -2 -1 -1 -1 ------------ Run | Yrd Mat Min Mat Min Exi Min Mat Sto Rec Fac Ext Cet Arc Hub Fac Upp Upp War Pro Fac Upp Upp Zhi Pro Res Qua Sec Res Tes Acc Com Ac0 Used RIF Installer . | . . . . . . . . . . . . . . . . . . . . . . . . . . . . . . . . . Robots Hacked . | . . . . . . . . . . . . . . . . . . . . . . . . . . . . . . . . . Non-combat . | . . . . . . . . . . . . . . . . . . . . . . . . . . . . . . . . . Combat . | . . . . . . . . . . . . . . . . . . . . . . . . . . . . . . . . . Robot Hacks Applied . | . . . . . . . . . . . . . . . . . . . . . . . . . . . . . . . . . Relay Couplers Released . | . . . . . . . . . . . . . . . . . . . . . . . . . . . . . . . . . Fabnet Peak Effective % . | . . . . . . . . . . . . . . . . . . . . . . . . . . . . . . . . . Robots Rewired 10 | . . . . . . . . . . . 9 . . . . . . . . . . . . . . . . . 1 . . . Allies Hacked . | . . . . . . . . . . . . . . . . . . . . . . . . . . . . . . . . . Hacks Repelled . | . . . . . . . . . . . . . . . . . . . . . . . . . . . . . . . . . Allies | -11 -10 -10 -9 -9 -9 -8 -8 -8 -8 -6 -6 -6 -6 -6 -5 -5 -5 -5 -4 -4 -4 -4 -4 -3 -3 -3 -3 -2 -2 -1 -1 -1 -------- Run | Yrd Mat Min Mat Min Exi Min Mat Sto Rec Fac Ext Cet Arc Hub Fac Upp Upp War Pro Fac Upp Upp Zhi Pro Res Qua Sec Res Tes Acc Com Ac0 Total Allies 70 | . . 1 . . . . . . . . 18 5 . . . . . . . . . . . . . . . . 1 2 43 . Largest Group 16 | . . 1 . . . . . . . . 9 8 7 6 . . . . . . . . . . . . . . 1 2 16 . Highest-Rated Group 679 | . . 31 . . . . . . . . 382 679 520 495 . . . . . . . . . . . . . . 143 138 231 . Highest-Rated Ally 159 | . . 31 . . . . . . . . 159 159 96 96 . . . . . . . . . . . . . . 143 69 15 . Total Orders 8 | . . . . . . . . . . . . . . 2 . . . 6 . . . . . . . . . . . . . . STAY 2 | . . . . . . . . . . . . . . 2 . . . . . . . . . . . . . . . . . . EXPLORE 3 | . . . . . . . . . . . . . . . . . . 3 . . . . . . . . . . . . . . RETURN 3 | . . . . . . . . . . . . . . . . . . 3 . . . . . . . . . . . . . . Ally Attacks 428 | . . 1 . . . . . . . . 135 21 20 34 . . . . . . . . . . . . . . 2 7 208 . Total Damage 9985 | . . 22 . . . . . . . . 2787 1005 863 699 . . . . . . . . . . . . . . 146 293 4170 . Kills 57 | . . . . . . . . . . . 26 5 2 5 . . . . . . . . . . . . . . 1 2 16 . Allies Corrupted 5 | . . . . . . . . . . . 1 . . . . . . . . . . . . . . . . . 1 2 1 . Allies Melted . | . . . . . . . . . . . . . . . . . . . . . . . . . . . . . . . . . Intel | -11 -10 -10 -9 -9 -9 -8 -8 -8 -8 -6 -6 -6 -6 -6 -5 -5 -5 -5 -4 -4 -4 -4 -4 -3 -3 -3 -3 -2 -2 -1 -1 -1 ------- Run | Yrd Mat Min Mat Min Exi Min Mat Sto Rec Fac Ext Cet Arc Hub Fac Upp Upp War Pro Fac Upp Upp Zhi Pro Res Qua Sec Res Tes Acc Com Ac0 Active Infowar (turns) 19677 | 9 135 158 313 68 775 . . . . 831 43 . 26 78 913 1250 1049 564 1114 724 2128 2156 627 2216 1383 604 1224 301 69 691 228 . Optics 1432 | . . . . . . . . . . . . . . . . . . . . . . . . . . 222 1209 . 1 . . . Sensors 7130 | . . . . . . . . . . . . . . . 651 1250 1049 564 1114 722 2 . . . 1327 451 . . . . . . IFF 7491 | . . . . . . . . . . . . . 26 78 262 . . . . . 2126 2156 627 2216 . . . . . . . . Terrain 1299 | 9 135 . . . . . . . . 645 43 . . . . . . . . . . . . . 96 368 3 . . . . . Structural 888 | . . . . 68 775 . . . . 43 . . . . . . . . . . . . . . . . . . 2 . . . Seismic 471 | . . 158 313 . . . . . . . . . . . . . . . . . . . . . . . . . . . . . Decoding 636 | . . . . . . . . . . . . . . . . . . . . . 340 296 . . . . . . . . . . Machine Analysis 144 | . . . . . . . . . . 143 . . . . . . . . . . . . . . . . . . . . 1 . Cloaking 45 | . . . . . . . . . . . . . . . 45 . . . . . . . . . . . . . . . . . Jamming 1318 | . . . . . . . . . . . . . . . . . . . . 20 . . . . . . 15 301 66 691 225 . ECM 2 | . . . . . . . . . . . . . . . . . . . . . . . . . . . . . . . 2 . Robot Analysis Total 9 | . 2 . . 3 . . . . . . . . . . . . . . . . . . 4 . . . . . . . . . Derelict Logs Recovered 12 | . . 2 . 1 . . . . . . . . . . . 2 3 . 2 . 1 1 . . . . . . . . . . Drone Launches 2 | . . . . . . . . . . . . . . . . . . 2 . . . . . . . . . . . . . . Drone Recoveries 2 | . . . . . . . . . . . . . . . . . . 2 . . . . . . . . . . . . . . Exploration | -11 -10 -10 -9 -9 -9 -8 -8 -8 -8 -6 -6 -6 -6 -6 -5 -5 -5 -5 -4 -4 -4 -4 -4 -3 -3 -3 -3 -2 -2 -1 -1 -1 ------------- Run | Yrd Mat Min Mat Min Exi Min Mat Sto Rec Fac Ext Cet Arc Hub Fac Upp Upp War Pro Fac Upp Upp Zhi Pro Res Qua Sec Res Tes Acc Com Ac0 Turns Passed 62674 | 139 1644 250 2103 1901 1166 1091 1043 220 3629 1056 1729 464 1582 685 1950 1320 1311 856 1771 2044 2409 2156 627 2269 1670 763 1680 494 2163 1754 16361 2374 Spaces Moved 31726 | 55 601 149 925 762 475 423 404 132 1668 719 754 223 221 367 1164 996 955 93 944 788 979 1110 158 935 867 616 1055 429 1461 1077 8322 1899 Core 3 | 2 . . . . . . . . . . . . . . . . . . . 1 . . . . . . . . . . . . Treads 11658 | 53 110 . 372 729 91 78 2 . 1181 558 754 223 221 367 1164 17 . . . 401 979 1110 91 . . . 59 . 355 91 2652 . Legs 8394 | . . . . . . . . . 64 64 . . . . . 979 955 93 941 226 . . . 341 867 616 117 . 597 40 2006 488 Wheels 3264 | . 491 149 553 33 384 345 402 132 346 97 . . . . . . . . . . . . . . . . . . . . 332 . Hover 4608 | . . . . . . . . . 77 . . . . . . . . . . . . . . 419 . . 793 345 288 591 1610 485 Flight 3582 | . . . . . . . . . . . . . . . . . . . 3 160 . . 67 175 . . . . 196 345 1710 926 Fastest Speed 35 | 50 90 105 105 160 205 220 135 145 103 71 71 129 129 129 129 125 125 125 125 98 163 163 177 69 69 69 69 102 58 61 50 35 Average Speed 130 | 156 120 115 170 210 243 245 189 145 156 79 104 129 129 129 129 125 125 125 128 172 233 183 273 182 69 69 107 102 86 105 109 94 Slowest Speed 1900 | 160 160 120 400 240 505 360 600 145 408 103 151 129 129 129 129 178 125 125 144 1900 253 267 298 298 69 69 223 154 189 309 250 200 Overloaded Moves 7 | . . . . . . . . . . . . . . . . . . . . . . . . . . . . . . . . 7 Propulsion Burnouts . | . . . . . . . . . . . . . . . . . . . . . . . . . . . . . . . . . Robots Hopped 2 | . . . . . . . . . . . . . . . . . . . . . . . . . . . . . . . 2 . Potential Cave-ins 16 | . . . . . . . . . . . . . . . . . . . . . . . . . . 2 3 . . 1 3 7 Cave-ins Triggered 1 | . . . . . . . . . . . . . . . . . . . . . . . . . . . . . . . . 1 Teleports 3 | . . . . . . . . . . . . . . . . . . . . . . . . . . . . . . . 1 2 Spacefolds 25 | . . . . . . . . . . . . . . . . . . . . . . . . . . . 6 2 10 4 3 . Microwarps 17 | . . . . . . . . . . . . . . . . . . . . . . . . . . . 9 8 . . . . Exploration Rate (%) 62 | 5 96 25 72 99 90 100 43 23 98 17 84 75 80 32 32 95 87 41 76 13 96 97 62 80 21 66 37 17 95 29 86 80 Regions Visited 32 Branch Regions 23 Pre-discovered Areas 18 | . 2 2 2 . . . . . 5 . . . . . . 1 . . . . . 1 3 . . . . . 2 . . . Known Exits Taken 16 | . 1 1 . . . 1 1 1 . . . . . 1 1 1 1 1 1 1 1 . . . 1 . . 1 . 1 . . Unknown Exits Taken 16 | 1 . . 1 1 1 . . . 1 1 1 1 1 . . . . . . . . 1 1 1 . 1 1 . 1 . 1 . Scrap Searched 25 | . . . . 4 . 2 . . . . . . . . . 3 2 . 1 . 5 5 . 3 . . . . . . . . Spaces Dug 229 | . . . 2 . . . 17 . . 9 . . . 4 50 8 4 3 3 . . . . . 2 14 26 2 19 29 23 14 Terrain Destroyed 2278 | . . 60 87 . . 38 74 . 10 12 7 10 7 223 216 15 23 3 16 107 66 31 1 39 13 68 83 8 50 120 530 361 Melee 9 | . . . . . . . . . . . . . . . . . . . . . . . . . . . 9 . . . . . Projectile 1231 | . . 2 12 . . . . . . 3 7 10 7 49 127 15 23 3 16 42 61 7 1 11 13 46 74 8 50 120 163 361 AOE 892 | . . 58 75 . . 38 74 . 10 9 . . . 174 89 . . . . 65 5 24 . 28 . 22 . . . . 221 . Terrain Rammed . | . . . . . . . . . . . . . . . . . . . . . . . . . . . . . . . . . Walls Destroyed . | . . . . . . . . . . . . . . . . . . . . . . . . . . . . . . . . . Machines Disabled . | . . . . . . . . . . . . . . . . . . . . . . . . . . . . . . . . . Actions | -11 -10 -10 -9 -9 -9 -8 -8 -8 -8 -6 -6 -6 -6 -6 -5 -5 -5 -5 -4 -4 -4 -4 -4 -3 -3 -3 -3 -2 -2 -1 -1 -1 --------- Run | Yrd Mat Min Mat Min Exi Min Mat Sto Rec Fac Ext Cet Arc Hub Fac Upp Upp War Pro Fac Upp Upp Zhi Pro Res Qua Sec Res Tes Acc Com Ac0 Total 49918 | 84 1400 192 1211 984 488 449 569 157 2602 1160 1566 344 1478 503 1479 1045 1031 828 1443 1319 1056 1187 347 1377 1868 879 1381 458 2222 1518 15059 2234 Wait 12910 | . 686 17 96 173 1 1 42 1 730 328 572 39 1175 18 53 17 28 724 381 259 5 4 158 305 753 73 31 9 460 44 5708 19 Move 31513 | 54 600 148 924 761 474 422 403 131 1667 718 753 222 220 366 1163 995 954 92 943 787 978 1109 157 934 866 615 983 354 1445 1070 8308 1897 Hop 2 | . . . . . . . . . . . . . . . . . . . . . . . . . . . . . . . 2 . Pick Up 690 | 9 24 1 22 2 9 4 12 6 41 23 16 15 15 15 38 6 1 1 18 30 7 14 6 4 57 18 38 8 31 20 161 18 Fast Attach 274 | 7 2 . 14 2 . 1 9 . 2 4 2 . 3 . 3 . . . 2 13 4 1 5 2 11 11 39 10 42 11 67 7 Attach 189 | . 4 4 3 4 1 . 2 . 7 10 5 3 2 1 4 . . . 3 16 2 2 1 3 14 14 11 8 4 11 45 5 Detach 80 | . . . . . . . . . 6 8 5 1 . . . . . . 1 7 2 . 1 3 . 6 8 7 2 5 18 . Swap 501 | . 8 6 7 2 1 5 13 . 4 9 2 2 2 14 47 5 11 3 15 35 5 5 1 22 42 19 20 7 35 40 97 17 Drop 825 | 2 11 . 23 2 2 2 19 1 55 28 19 10 16 13 35 5 1 2 22 24 10 8 9 5 62 28 71 17 69 26 208 20 Fire 2615 | 12 65 16 121 38 . 14 69 2 90 13 73 44 45 75 124 17 36 3 58 147 43 44 9 99 63 91 90 31 129 290 414 250 Melee 97 | . . . . . . . . . . . . . . . . . . . . . . . . . . . 90 7 . . . . Ram 4 | . . . . . . . . . . . . . . . . . . . . . . . . . . . . . 1 . 3 . Kick 10 | . . . . . . . . . . . . . . . . . . 3 . . . . . . . 4 . . 2 1 . . Crush 18 | . . . 1 . . . . . . 1 2 . . 1 12 . . . . 1 . . . . . . . . . . . . Escape Stasis 45 | . . . . . . . . 16 . . . . . . . . . . . . . . . . . . . . . . 28 1 Rewire 87 | . . . . . . . . . . . 85 . . . . . . . . . . . . . . . . . 2 . . . Trap . | . . . . . . . . . . . . . . . . . . . . . . . . . . . . . . . . . Miscellaneous 58 | . . . . . . . . . . 18 32 8 . . . . . . . . . . . . . . . . . . . . Route ------- -11/Scrapyard -10/Materials (discovered 5 exits: *Mat x3 / *Min / Sub) -10/Mines (discovered 2 exits: *Mat x2) -9/Materials (discovered 4 exits: *Mat x3 / *Min) -9/Mines (discovered 3 exits: *Mat x2 / *Exi) -9/Exiles (discovered 2 exits: [*Min x2]) -8/Mines (discovered 2 exits: *Mat x2) -8/Materials (discovered 2 exits: *Fac / *Sto) -8/Storage -8/Recycling -6/Factory (discovered 6 exits: Fac x4 / Low / *Ext) -6/Extension (discovered 2 exits: *Fac / *Cet) -6/Cetus (discovered 2 exits: *Fac / [*Arc]) -6/Archives (discovered 3 exits: *Fac / *Hub x2) -6/Hub_04(d) (discovered 2 exits: *Fac x2) -5/Factory (discovered 4 exits: *Fac x2 / *Upp x2) -5/Upper Caves -5/Upper Caves (discovered 2 exits: *Fac / *War) -5/Warlord -4/Proximity Caves -4/Factory (discovered 3 exits: *Upp x2 / Arm) -4/Upper Caves -4/Upper Caves (discovered 2 exits: *Res / *Zhi) -4/Zhirov -3/Proximity Caves -3/Research (discovered 2 exits: *Qua x2) -3/Quarantine (discovered 2 exits: *Sec / [*Frg]) -3/Section 7 -2/Research (discovered 2 exits: *Tes x2) -2/Testing -1/Access -1/Command (discovered 3 exits: [*Sur x2] / *Ac0) -1/Access_0 To Fleet Rendezvous History --------- Turn | Location | Event 7 | -11/Scrapyard | Discovered new exit (range 15) 140 | -11/Scrapyard | Entered Materials 293 | -10/Materials | Discovered new exit (range 16) 317 | -10/Materials | Build established: Mutant 470 | -10/Materials | Discovered new exit (range 15) 652 | -10/Materials | Discovered new exit (range 5) 794 | -10/Materials | Discovered new exit (range 15) 1063 | -10/Materials | Identified exit to Subcaves 1215 | -10/Materials | Learned Storage trap positions 1273 | -10/Materials | Learned Storage stockpile data 1365 | -10/Materials | Learned Materials stockpile data 1395 | -10/Materials | Learned 4 Recycling zone layouts 1433 | -10/Materials | Learned location of 1 exit from Storage 1481 | -10/Materials | Identified exit to Materials 1481 | -10/Materials | Identified exit to Mines 1602 | -10/Materials | Learned location of 2 exits from Materials 1784 | -10/Materials | Entered Mines 1785 | -10/Mines | Assembled infested the area 1794 | -10/Mines | Core integrity fell below 50% 1804 | -10/Mines | Core integrity fell below 20% 1816 | -10/Mines | Learned Materials interactive machine intel 1824 | -10/Mines | Destroyed 20 combat bots 1829 | -10/Mines | Discovered exit to Materials (range 9) 1830 | -10/Mines | Lost 4 parts (1p2n1u) 1884 | -10/Mines | Escorted by a lone wolf Derelict 1904 | -10/Mines | Learned location of Storage (-8) 1947 | -10/Mines | Discovered exit to Materials (range 11) 2034 | -10/Mines | Entered Materials 2034 | -9/Materials | Evolved 2 slots: Propulsion x1, Utility x1 2035 | -9/Materials | Identified exit to Materials 2037 | -9/Materials | Loaded intel: 18 interactive machine locations 2127 | -9/Materials | Discovered new exit (range 6) 2411 | -9/Materials | Build established: Scavenger-Mutant 2706 | -9/Materials | Lost 4 parts (1p2n1w) 2854 | -9/Materials | Discovered exit to Materials (range 16) 2984 | -9/Materials | Build established: Mutant 3377 | -9/Materials | Core integrity fell below 50% 3549 | -9/Materials | Learned location of Zion (-6) 3603 | -9/Materials | Learned 2 Storage zone layouts 3634 | -9/Materials | First assault squad dispatched 3647 | -9/Materials | Learned location of 1 exit from Recycling 3708 | -9/Materials | Learned Storage trap positions 3752 | -9/Materials | Learned Storage stockpile data 3832 | -9/Materials | Central database locked down 4137 | -9/Materials | Entered Mines 4253 | -9/Mines | Found a hidden stash of uninstalled traps 4445 | -9/Mines | Excavation squad dispatched 4445 | -9/Mines | A large section of the Mines collapsed 4783 | -9/Mines | Destroyed YI-UF0 4827 | -9/Mines | Learned Materials stockpile data 4888 | -9/Mines | Core integrity fell below 20% 4920 | -9/Mines | Lost 3 parts (1n1u1w) 5481 | -9/Mines | Central database locked down 6030 | -9/Mines | Deemed a non-threat by the Exiles lab entrance 6030 | -9/Mines | Discovered new exit (range 5) 6038 | -9/Mines | Entered Exiles 6101 | -9/Exiles | Discovered new exit (range 14) 6144 | -9/Exiles | Met 8R-AWN 6177 | -9/Exiles | Met EX-HEX 6278 | -9/Exiles | Build established: Scavenger-Mutant 6284 | -9/Exiles | Met EX-DEC 6318 | -9/Exiles | Visited The Gauntlet 6588 | -9/Exiles | Discovered new exit (range 14) 6719 | -9/Exiles | Met EX-BIN 6746 | -9/Exiles | Aligned with FarCom system 6748 | -9/Exiles | Given EX-Vault access code 6795 | -9/Exiles | Opened EX-Vault 6809 | -9/Exiles | Found AWS/Thermal 6820 | -9/Exiles | Found PSU Rigger 6848 | -9/Exiles | Found Army-in-a-Box 6944 | -9/Exiles | Warned to stay clear of 0b10 Research branches 7111 | -9/Exiles | Build established: Hauler-Mutant 7204 | -9/Exiles | Stole three prototypes: Army-in-a-Box, PSU Rigger, AWS/Thermal 7204 | -9/Exiles | Entered Mines 8295 | -8/Mines | Entered Materials 8295 | -8/Materials | Evolved 2 slots: Propulsion x2 8701 | -8/Materials | Lost 5 parts (1p4n) 9115 | -8/Materials | Discovered new exit (range 6) 9148 | -8/Materials | Identified exit to Factory 9211 | -8/Materials | Central database locked down 9323 | -8/Materials | Discovered new exit (range 6) 9331 | -8/Materials | Identified exit to Storage 9338 | -8/Materials | Entered Storage 9339 | -8/Storage | Identified exit to Recycling 9340 | -8/Storage | FarCom data flow suspended 9341 | -8/Storage | Loaded intel: 18 trap records 9457 | -8/Storage | Used back door to open Recycling access 9558 | -8/Storage | Entered Recycling 9559 | -8/Recycling | Identified exit to Scraptown 9901 | -8/Recycling | Build established: Mutant 10303 | -8/Recycling | Learned location of 1 exit from Storage 10342 | -8/Recycling | Learned location of 2 exits from Factory 10369 | -8/Recycling | Learned Storage interactive machine intel 10385 | -8/Recycling | Learned 4 Recycling zone layouts 10392 | -8/Recycling | Learned 4 Recycling zone layouts 10393 | -8/Recycling | Learned Storage security intel 10395 | -8/Recycling | Discovered new exit (range 15) 10412 | -8/Recycling | Learned Storage emergency access door positions 10681 | -8/Recycling | Scanned before Scraplab entrance 10704 | -8/Recycling | Entered Scraplab 10711 | -8/Recycling | Angered Scraplab inhabitants 10737 | -8/Recycling | Found Prototype Device 10747 | -8/Recycling | Identified Scrap Engine 11179 | -8/Recycling | Build established: Construct 13187 | -8/Recycling | Entered Factory 13187 | -6/Factory | Evolved 4 slots: Power x1, Propulsion x1, Utility x1, Weapon x1 13188 | -6/Factory | Identified exit to Factory 13189 | -6/Factory | Identified exit to Lower Caves 13537 | -6/Factory | Search patrols dispatched 13602 | -6/Factory | Destroyed 8 combat bots 13863 | -6/Factory | Discovered new exit (range 5) 14179 | -6/Factory | System corruption reached 10% 14243 | -6/Factory | Entered Extension 14273 | -6/Extension | Rescued a captive Derelict 14275 | -6/Extension | Rescued a captive Derelict 14320 | -6/Extension | Rescued a captive Derelict 14321 | -6/Extension | Rescued a captive Derelict 14364 | -6/Extension | Rescued a captive Derelict 14383 | -6/Extension | Rescued a captive Derelict 14384 | -6/Extension | Rescued a captive Derelict 14572 | -6/Extension | Rescued A7 14937 | -6/Extension | Spotted B-75 Beast 14944 | -6/Extension | Allies destroyed B-75 Beast 14954 | -6/Extension | Spotted B-75 Beast 14971 | -6/Extension | Allies destroyed B-75 Beast 15565 | -6/Extension | Rescued a captive Derelict 15629 | -6/Extension | Discovered exit to Factory (range 10) 15630 | -6/Extension | Discovered new exit (range 6) 15643 | -6/Extension | First assault squad dispatched 15683 | -6/Extension | Lost 3 allies 15972 | -6/Extension | Entered Cetus 15972 | -6/Cetus | Accompanied by 5 allies (A7) 15977 | -6/Cetus | Acquired a Cetus Manufacturing Module code from A7 15990 | -6/Cetus | Spotted Cetus Guard 15990 | -6/Cetus | Spotted Cetus Guard 15995 | -6/Cetus | Spotted Cetus Guard 16003 | -6/Cetus | Destroyed Cetus Guard 16009 | -6/Cetus | Destroyed Cetus Guard 16009 | -6/Cetus | Spotted Cetus Guard 16022 | -6/Cetus | Allies destroyed Cetus Guard 16092 | -6/Cetus | Started Cetus Manufacturing Module 16117 | -6/Cetus | Manufactured an Enhanced Grunt 16142 | -6/Cetus | Manufactured an Enhanced Grunt 16167 | -6/Cetus | Manufactured an Enhanced Grunt 16192 | -6/Cetus | Manufactured an Enhanced Grunt 16217 | -6/Cetus | Manufactured an Enhanced Grunt 16217 | -6/Cetus | Discovered new exit (range 15) 16241 | -6/Cetus | Spotted Cetus Guard 16241 | -6/Cetus | Spotted Cetus Guard 16244 | -6/Cetus | Spotted Cetus Guard 16246 | -6/Cetus | Destroyed Cetus Guard 16246 | -6/Cetus | Allies destroyed Cetus Guard 16250 | -6/Cetus | Allies destroyed Cetus Guard 16251 | -6/Cetus | Spotted Cetus Guard 16257 | -6/Cetus | Allies destroyed Cetus Guard 16263 | -6/Cetus | Discovered exit to Factory (range 15) 16269 | -6/Cetus | Met Revision 17 16379 | -6/Cetus | Murdered A7 16381 | -6/Cetus | Extracted ID and sensor layout for unrecognized location from A7's data core 16436 | -6/Cetus | Entered Archives 16436 | -6/Archives | Accompanied by 7 allies 16478 | -6/Archives | Build established: Commander-Construct 16534 | -6/Archives | Discovered new exit (range 16) 16560 | -6/Archives | Discovered new exit (range 15) 16603 | -6/Archives | Discovered exit to Factory (range 15) 18018 | -6/Archives | Entered Hub_04(d) 18018 | -6/Hub_04(d) | Accompanied by 6 allies 18031 | -6/Hub_04(d) | Discovered exit to Factory (range 15) 18208 | -6/Hub_04(d) | Lost 3 allies 18298 | -6/Hub_04(d) | Discovered exit to Factory (range 5) 18464 | -6/Hub_04(d) | Network Hub disabled 18481 | -6/Hub_04(d) | Network Hub disabled 18515 | -6/Hub_04(d) | Build established: Construct 18537 | -6/Hub_04(d) | Spotted Lightning 18538 | -6/Hub_04(d) | Spotted Lightning 18538 | -6/Hub_04(d) | Spotted Lightning 18544 | -6/Hub_04(d) | Core integrity fell below 50% 18570 | -6/Hub_04(d) | Destroyed Lightning 18579 | -6/Hub_04(d) | Found Prototype Device 18580 | -6/Hub_04(d) | Identified Exp. Phase Shifter 18584 | -6/Hub_04(d) | Found Prototype Device 18585 | -6/Hub_04(d) | Identified Exp. EM Shield 18600 | -6/Hub_04(d) | Destroyed Lightning 18605 | -6/Hub_04(d) | Found Prototype Energy Cannon 18627 | -6/Hub_04(d) | Found Prototype Processor 18673 | -6/Hub_04(d) | Spotted B-75 Beast 18703 | -6/Hub_04(d) | Entered Factory 18703 | -5/Factory | Evolved 2 slots: Power x1, Utility x1 18812 | -5/Factory | Spotted B-75 Beast 18832 | -5/Factory | Destroyed B-75 Beast 18924 | -5/Factory | Fabricated Biometal Leg? 19628 | -5/Factory | Discovered new exit (range 6) 19634 | -5/Factory | Identified exit to Factory 19700 | -5/Factory | Identified exit to Upper Caves 20090 | -5/Factory | Discovered exit to Factory (range 9) 20211 | -5/Factory | Identified Exp. Targeting Computer 20653 | -5/Factory | Entered Upper Caves 20663 | -5/Upper Caves | Encountered a Warlord checkpoint 20845 | -5/Upper Caves | Learned Factory emergency access door positions 21662 | -5/Upper Caves | Discovered new exit (range 16) 21680 | -5/Upper Caves | Identified exit to Upper Caves 21806 | -5/Upper Caves | Attracted the attention of an 0b10 checkpoint 21973 | -5/Upper Caves | Entered another Upper Caves area 21991 | -5/Upper Caves | Discovered exit to Factory (range 5) 22001 | -5/Upper Caves | Identified exit to Warlord 22297 | -5/Upper Caves | Learned 8 Factory zone layouts 23284 | -5/Upper Caves | Entered Warlord 23318 | -5/Warlord | Discovered new exit (range 16) 23335 | -5/Warlord | Identified exit to Proximity Caves 24134 | -5/Warlord | Warlord's base attacked by MAIN.C 24140 | -5/Warlord | Entered Proximity Caves 24283 | -4/Proximity Caves | Received a Behemoth hack from an annoying Tinkerer 24627 | -4/Proximity Caves | Learned 4 Research zone layouts 24833 | -4/Proximity Caves | Attracted the attention of an 0b10 checkpoint 25010 | -4/Proximity Caves | Unaware initiated a cargo recovery operation 25225 | -4/Proximity Caves | Found Prototype Device 25226 | -4/Proximity Caves | Identified Exp. Actuator Array 25233 | -4/Proximity Caves | Found Prototype Processor 25911 | -4/Proximity Caves | Entered Factory 25911 | -4/Factory | Evolved 2 slots: Utility x2 26078 | -4/Factory | Fabricated Hvy. Flak Cannon? 26395 | -4/Factory | Discovered new exit (range 11) 26409 | -4/Factory | Identified exit to Upper Caves 26643 | -4/Factory | Identified exit to Armory 26824 | -4/Factory | Repaired Centrium Medium Armor Plating 27150 | -4/Factory | Cargo convoy interrupted 27155 | -4/Factory | Spotted Executioner 27155 | -4/Factory | Spotted Striker 27178 | -4/Factory | Destroyed Striker 27182 | -4/Factory | System corruption reached 10% 27186 | -4/Factory | Destroyed Executioner 27243 | -4/Factory | Destroyed 7 combat bots 27372 | -4/Factory | Lost 3 parts (2u1w) 27396 | -4/Factory | Identified Exp. Armor Integrity Analyzer 27406 | -4/Factory | Found Prototype Processor 27409 | -4/Factory | Found Prototype Processor 27411 | -4/Factory | First assault squad dispatched 27424 | -4/Factory | Found Prototype Protection 27424 | -4/Factory | Identified Centrium Heavy Armor Plating 27499 | -4/Factory | Found Centrium Heavy Armor Plating 27510 | -4/Factory | Found Prototype Processor 27510 | -4/Factory | Identified Exp. Core Analyzer (x3) 27621 | -4/Factory | Destroyed 7 combat bots 27955 | -4/Factory | Entered Upper Caves 27987 | -4/Upper Caves | Identified exit to Upper Caves 28448 | -4/Upper Caves | Core integrity fell below 50% 30127 | -4/Upper Caves | Encountered a Warlord checkpoint 30364 | -4/Upper Caves | Entered another Upper Caves area 30394 | -4/Upper Caves | Discovered new exit (range 10) 30892 | -4/Upper Caves | Learned location of Quarantine (-3) 31207 | -4/Upper Caves | System corruption reached 30% 31915 | -4/Upper Caves | Spotted 6G-6C7(f) 31916 | -4/Upper Caves | Encountered a Master Thief 31918 | -4/Upper Caves | Destroyed 6G-6C7(f) 31920 | -4/Upper Caves | Spotted XB-HBU(f) 31920 | -4/Upper Caves | Hds. Centrium Leg stolen by Master Thief 31921 | -4/Upper Caves | Encountered a Master Thief 31922 | -4/Upper Caves | Spotted MH-IQ0(f) 31923 | -4/Upper Caves | Encountered a Master Thief 31923 | -4/Upper Caves | Spotted A0-Y4H(f) 31923 | -4/Upper Caves | Exp. Core Analyzer stolen by Master Thief 31924 | -4/Upper Caves | Encountered a Master Thief 31928 | -4/Upper Caves | Exp. Core Analyzer stolen by Master Thief 31991 | -4/Upper Caves | Discovered new exit (range 9) 32520 | -4/Upper Caves | Entered Zhirov 32520 | -4/Zhirov | Discovered new exit (range 3) 32569 | -4/Zhirov | Met Zhirov 32617 | -4/Zhirov | Learned location of Testing (-2) 32667 | -4/Zhirov | Zhirov requested help retrieving the SGEMP Prototype 32708 | -4/Zhirov | Found Alien Artifact 32708 | -4/Zhirov | Identified Integrated Reactor 32708 | -4/Zhirov | Installed Integrated Reactor, increased core energy generation (+10) 32742 | -4/Zhirov | Found Alien Artifact 33147 | -4/Zhirov | Entered Proximity Caves 34022 | -3/Proximity Caves | Spotter reported a threat 34047 | -3/Proximity Caves | Spotted B-86 Titan 34096 | -3/Proximity Caves | Destroyed B-86 Titan 34131 | -3/Proximity Caves | Spotter reported a threat 34202 | -3/Proximity Caves | Spotter reported a threat 34440 | -3/Proximity Caves | Spotter reported a threat 34498 | -3/Proximity Caves | Spotter reported a threat 34695 | -3/Proximity Caves | Spotter reported a threat 34788 | -3/Proximity Caves | Spotter reported a threat 35176 | -3/Proximity Caves | Attracted the attention of an 0b10 checkpoint 35327 | -3/Proximity Caves | Discovered new exit (range 15) 35416 | -3/Proximity Caves | Entered Research 35416 | -3/Research | Evolved 2 slots: Utility x1, Weapon x1 35616 | -3/Research | Revision forces began assault on 0b10 35698 | -3/Research | Identified exit to Quarantine 35742 | -3/Research | Repaired Huge Storage Unit 35869 | -3/Research | Met up with Revision 17++ 35914 | -3/Research | Fabricated Weapon Mount? 35933 | -3/Research | Lost 3 allies 36116 | -3/Research | Research terminal network offline 36539 | -3/Research | Spotted B-86 Titan 36548 | -3/Research | Destroyed B-86 Titan 36914 | -3/Research | Spotted Executioner 36926 | -3/Research | Destroyed Executioner 36932 | -3/Research | Found Prototype Device 36932 | -3/Research | Identified Adv. Kinecellerator 37086 | -3/Research | Entered Quarantine 37224 | -3/Quarantine | Found Alien Slashing Weapon 37297 | -3/Quarantine | Unchained authorized (DW-4LL) 37311 | -3/Quarantine | Found Unknown Launcher 37311 | -3/Quarantine | Identified Fusion Bomb Launcher 37350 | -3/Quarantine | Found Alien Artifact 37490 | -3/Quarantine | Found Alien Artifact 37505 | -3/Quarantine | Found Alien Energy Cannon 37520 | -3/Quarantine | DW-4LL burst out of a wall 37520 | -3/Quarantine | Identified Sigix Broadsword 37548 | -3/Quarantine | System corruption reached 10% 37548 | -3/Quarantine | Cryocooling Duct disabled 37562 | -3/Quarantine | Destroyed DW-4LL 37563 | -3/Quarantine | Ambient heat levels rising (+20) 37563 | -3/Quarantine | Non-combat units ordered to evacuate 37569 | -3/Quarantine | Found Prototype Treads 37571 | -3/Quarantine | Found Prototype Protection 37572 | -3/Quarantine | Found Exp. Armor Integrity Analyzer 37575 | -3/Quarantine | Found Prototype Treads 37578 | -3/Quarantine | Lost 5 parts (5u) 37579 | -3/Quarantine | Found Prototype Device 37598 | -3/Quarantine | Found Prototype Ballistic Gun 37600 | -3/Quarantine | Identified DW-4LL's Slamshotty 37621 | -3/Quarantine | Identified DW-4LL's Blast Wall 37623 | -3/Quarantine | Identified Exp. Weapon Cycler 37729 | -3/Quarantine | Spotted Alpha 7 37760 | -3/Quarantine | Spotted Fortress 37809 | -3/Quarantine | Discovered new exit (range 6) 37809 | -3/Quarantine | Discovered new exit (range 7) 37836 | -3/Quarantine | Search patrols dispatched 37849 | -3/Quarantine | Entered Section 7 37849 | -3/Section 7 | Identified Core Reset Matrix 37849 | -3/Section 7 | Identified Subatomic Replicator 37849 | -3/Section 7 | Identified Core Cannon 37849 | -3/Section 7 | Identified Transdimensional Reconstructor 37849 | -3/Section 7 | Used Core Reset Matrix 37853 | -3/Section 7 | Detected hypermatrix surge 37853 | -3/Section 7 | Sensed 22 artifacts in vicinity 37855 | -3/Section 7 | Spotted S7 Guard 37869 | -3/Section 7 | Found Core Regenerator 37903 | -3/Section 7 | Destroyed S7 Guard 37995 | -3/Section 7 | Spotted B-86 Titan 38140 | -3/Section 7 | Spotted S7 Guard 38152 | -3/Section 7 | Build established: Alien-Construct 38153 | -3/Section 7 | Found Core Membrane 38153 | -3/Section 7 | Installed Core Membrane, gained immunity to corruption 38274 | -3/Section 7 | Destroyed S7 Guard 38789 | -3/Section 7 | Found Integrity Redistributor 38904 | -3/Section 7 | Found Microwarp Drive 38963 | -3/Section 7 | Found Unknown Launcher 38963 | -3/Section 7 | Identified Gamma Bomb Array 38992 | -3/Section 7 | Found Prototype Processor 38992 | -3/Section 7 | Identified Spectral Analyzer 39164 | -3/Section 7 | Found Spacefold Activator 39349 | -3/Section 7 | First assault squad dispatched 39350 | -3/Section 7 | Found Integrity Redistributor 39352 | -3/Section 7 | Found Integrity Redistributor 39390 | -3/Section 7 | Found Integrated Reactor 39390 | -3/Section 7 | Installed Integrated Reactor, increased core energy generation (+10) 39429 | -3/Section 7 | Used Subatomic Replicator to replicate LRC Armor 39431 | -3/Section 7 | Found LRC Armor 39431 | -3/Section 7 | Installed LRC Armor, increased core integrity (+250) 39433 | -3/Section 7 | Installed LRC Armor, increased core integrity (+250) 39513 | -3/Section 7 | Discovered new exit (range 5) 39524 | -3/Section 7 | Core integrity fell below 50% 39529 | -3/Section 7 | Entered Research 39529 | -2/Research | Evolved 2 slots: Propulsion x2 39914 | -2/Research | Spotted B-90 Cyclops 39985 | -2/Research | Identified exit to Testing 40008 | -2/Research | Spotted B-90 Cyclops 40023 | -2/Research | Entered Testing 40024 | -2/Testing | Sensed 1 artifact in vicinity 40047 | -2/Testing | Rewired PG-0JEYPBT7HM 40110 | -2/Testing | Found Prototype Energy Gun 40110 | -2/Testing | Identified Warp Gun 40146 | -2/Testing | Found Prototype Hackware 40271 | -2/Testing | Identified System Mapper 40386 | -2/Testing | Fabricated Cld. Linear Gravjet (x1) 40825 | -2/Testing | Found Prototype Ballistic Cannon 40838 | -2/Testing | Discovered new exit (range 16) 40891 | -2/Testing | Found Prototype Hackware 40897 | -2/Testing | Identified Exp. Hacking Suite 40903 | -2/Testing | Identified Omega Cannon 41028 | -2/Testing | Found Prototype Ballistic Cannon 41199 | -2/Testing | Learned 4 Access zone layouts 41261 | -2/Testing | Learned Access garrison access intel 41312 | -2/Testing | Learned 12 Research zone layouts 41382 | -2/Testing | Found Prototype Energy Cannon 41382 | -2/Testing | Identified Cld. Nova Cannon 41395 | -2/Testing | Spotted Striker 41397 | -2/Testing | Spotted Striker 41406 | -2/Testing | Destroyed Striker 41408 | -2/Testing | Learned Access stockpile data 41420 | -2/Testing | Destroyed Striker 41424 | -2/Testing | Learned location of 2 exits from Research 41486 | -2/Testing | Learned Access fabricator intel 41510 | -2/Testing | Identified Perforator 41531 | -2/Testing | Learned location of 1 exit from Research 41544 | -2/Testing | Found Prototype Device 41544 | -2/Testing | Identified Exp. Hardlight Generator 41760 | -2/Testing | Found Prototype Device 41773 | -2/Testing | First assault squad dispatched 41784 | -2/Testing | Identified Exp. Shield Generator 41836 | -2/Testing | Spotted Alpha 7 41863 | -2/Testing | Destroyed Alpha 7 41887 | -2/Testing | Found Prototype Processor 42000 | -2/Testing | Found Prototype Energy Cannon 42000 | -2/Testing | Identified Null Cannon 42010 | -2/Testing | Found Prototype Protection 42010 | -2/Testing | Identified Med. Regenerative Plating 42013 | -2/Testing | Found Prototype Protection 42013 | -2/Testing | Identified Lgt. Regenerative Plating 42024 | -2/Testing | Found Prototype Protection 42024 | -2/Testing | Identified SHELL Armor 42101 | -2/Testing | Found Prototype Hackware 42159 | -2/Testing | Identified Exp. Targeting Computer 42159 | -2/Testing | Identified Ghost Barrier 42186 | -2/Testing | Entered Access 42186 | -1/Access | Evolved 2 slots: Utility x2 42189 | -1/Access | Loaded intel: 4 fabricator locations 42190 | -1/Access | Loaded intel: 6 garrison access locations 42514 | -1/Access | Unchained authorized (CL-0N3) 42677 | -1/Access | Fabricated H-88 Terminator? 42695 | -1/Access | U-05 Engineer reconstituted as Alpha 7 42699 | -1/Access | Spotted Alpha 7 42747 | -1/Access | Destroyed 16 combat bots 42791 | -1/Access | Destroyed Alpha 7 42791 | -1/Access | Alpha 7 reconstituted as CL-0N3 43120 | -1/Access | A-15 Conveyor reconstituted as Access Guard 43120 | -1/Access | Spotted Access Guard 43138 | -1/Access | Destroyed Access Guard 43138 | -1/Access | Access Guard reconstituted as CL-0N3 43436 | -1/Access | First assault squad dispatched 43447 | -1/Access | Identified exit to Command 43486 | -1/Access | R-10 Processor reconstituted as V2 43486 | -1/Access | Spotted V2 43522 | -1/Access | Destroyed V2 43522 | -1/Access | V2 reconstituted as CL-0N3 43573 | -1/Access | Destroyed 7 combat bots 43717 | -1/Access | R-10 Processor reconstituted as Alpha 7 43718 | -1/Access | Spotted Alpha 7 43760 | -1/Access | Used Integrity Redistributor, redistributed integrity from core (-494) 43774 | -1/Access | Destroyed Alpha 7 43774 | -1/Access | Alpha 7 reconstituted as CL-0N3 43815 | -1/Access | High security lockdown imminent 43836 | -1/Access | Destroyed 10 combat bots 43895 | -1/Access | High security lockdown engaged 43932 | -1/Access | Spotted B-99 Colossus 43933 | -1/Access | Spotted B-99 Colossus 43937 | -1/Access | Core integrity fell below 50% 43940 | -1/Access | Entered Command 44087 | -1/Command | Spotted B-99 Colossus 44191 | -1/Command | Found Prototype Launcher 44191 | -1/Command | Identified Point Singularity Launcher 44236 | -1/Command | Found Point Singularity Launcher 44440 | -1/Command | First assault squad dispatched 44649 | -1/Command | Destroyed 14 combat bots 45080 | -1/Command | Spotted B-99 Colossus 45092 | -1/Command | Destroyed B-99 Colossus 45472 | -1/Command | Found Unknown Device 45472 | -1/Command | Identified Quantum Capacitor 45594 | -1/Command | High security lockdown imminent 45596 | -1/Command | Phase Generator disabled 45649 | -1/Command | Destroyed 19 combat bots 45674 | -1/Command | High security lockdown engaged 45869 | -1/Command | Spotted Investigator 45869 | -1/Command | Destroyed Investigator 45897 | -1/Command | Emitted hypermatrix ping 45902 | -1/Command | Assembled emerged from beneath the floor 45934 | -1/Command | Assembled emerged from beneath the floor 45953 | -1/Command | Lost 6 allies 45963 | -1/Command | Destroyed 23 combat bots 46041 | -1/Command | Spotted Striker 46042 | -1/Command | Lost 6 allies 46044 | -1/Command | Spotted Striker 46044 | -1/Command | Spotted Striker 46057 | -1/Command | Destroyed Striker 46064 | -1/Command | Destroyed Striker 46064 | -1/Command | Destroyed Striker 46106 | -1/Command | Destroyed 30 combat bots 46278 | -1/Command | Spotted Executioner 46284 | -1/Command | Spotted Striker 46285 | -1/Command | Spotted Striker 46288 | -1/Command | Spotted Executioner 46288 | -1/Command | Spotted Striker 46302 | -1/Command | Spotted Executioner 46308 | -1/Command | Used Core Regenerator, restored core integrity (+525) 46310 | -1/Command | Destroyed Executioner 46310 | -1/Command | Destroyed Striker 46315 | -1/Command | Destroyed Executioner 46333 | -1/Command | Spotted Executioner 46340 | -1/Command | Destroyed Executioner 46367 | -1/Command | Spotted Executioner 46367 | -1/Command | Spotted Executioner 46368 | -1/Command | Destroyed 20 combat bots 46393 | -1/Command | Destroyed Executioner 46399 | -1/Command | Destroyed Executioner 46513 | -1/Command | Assembled emerged from beneath the floor 46556 | -1/Command | Scanned by Researcher 46557 | -1/Command | Spotted Investigator 46559 | -1/Command | Destroyed Investigator 46588 | -1/Command | Spotted Striker 46611 | -1/Command | Allies destroyed Striker 46631 | -1/Command | Lost 5 allies 46659 | -1/Command | Spotted Executioner 46667 | -1/Command | Spotted Executioner 46668 | -1/Command | Destroyed Executioner 46676 | -1/Command | Destroyed Executioner 46676 | -1/Command | Destroyed Striker 46695 | -1/Command | Lost 3 allies 46718 | -1/Command | Destroyed 7 combat bots 47003 | -1/Command | Found Prototype Launcher 47003 | -1/Command | Identified Containment Facilitator 47114 | -1/Command | Assembled emerged from beneath the floor 47340 | -1/Command | Assembled emerged from beneath the floor 51136 | -1/Command | Lost 3 allies 52268 | -1/Command | Assembled emerged from beneath the floor 52283 | -1/Command | Used Integrity Redistributor, redistributed integrity to core (+730) 52641 | -1/Command | Murdered 9 allies 52653 | -1/Command | Spotted Combat Programmer 52653 | -1/Command | Spotted Combat Programmer 52672 | -1/Command | Destroyed Combat Programmer 52685 | -1/Command | Destroyed Combat Programmer 53055 | -1/Command | Spotted M Guard 53060 | -1/Command | Destroyed M Guard 53094 | -1/Command | Spotted M Guard 53096 | -1/Command | Destroyed M Guard 53096 | -1/Command | All MAIN.C guards destroyed 53110 | -1/Command | Found Corrupted Prototype Device 53113 | -1/Command | Identified AEGIS Remote Shield 53117 | -1/Command | Found Corrupted Prototype Protection 53117 | -1/Command | Identified Hvy. Regenerative Plating 54035 | -1/Command | Met MAIN.C 54038 | -1/Command | 0b10 Conduit disabled 54059 | -1/Command | Destroyed MAIN.C Shell 54061 | -1/Command | MAIN.C activated Command garrisons 54098 | -1/Command | Destroyed MAIN.C 54105 | -1/Command | Discovered new exit (range 28) 54105 | -1/Command | Discovered new exit (range 130) 54105 | -1/Command | Extracted map data and part IDs from MAIN.C's data core 57405 | -1/Command | Used Integrity Redistributor, redistributed integrity to core (+1050) 58528 | -1/Command | Found Multirail 58574 | -1/Command | Found Adv. Kinecellerator 58601 | -1/Command | Found Exp. Core Analyzer 58623 | -1/Command | Found Exp. Core Analyzer 58625 | -1/Command | Found Adv. Kinecellerator 58669 | -1/Command | Found Exp. Targeting Computer 59438 | -1/Command | Found Zero-point Reactor 59440 | -1/Command | Found Zero-point Reactor 59485 | -1/Command | Found Exp. Armor Integrity Analyzer 59488 | -1/Command | Found Spectral Analyzer 59614 | -1/Command | Found Exp. Powered Armor 59618 | -1/Command | Found Exp. Powered Armor 59626 | -1/Command | Found Exp. Targeting Computer 60291 | -1/Command | Warped through subspace to slip node 60291 | -1/Command | Discovered new exit (range 4) 60301 | -1/Command | Entered Access_0 60302 | -1/Access_0 | Sensed 4 artifacts in vicinity 60303 | -1/Access_0 | Met Architect 60322 | -1/Access_0 | Destroyed A8 60332 | -1/Access_0 | Architect warped through subspace 60371 | -1/Access_0 | Subspace Access Node disabled 60403 | -1/Access_0 | Architect warped through subspace 60450 | -1/Access_0 | Architect warped through subspace 60487 | -1/Access_0 | Found Corrupted Exp. Powered Armor 60489 | -1/Access_0 | Architect warped through subspace 60492 | -1/Access_0 | Found Corrupted Exp. Powered Armor 60518 | -1/Access_0 | A6 warped into view 60525 | -1/Access_0 | Destroyed A6 60544 | -1/Access_0 | Architect warped through subspace 60567 | -1/Access_0 | Found Core Regenerator 60581 | -1/Access_0 | Architect warped through subspace 60628 | -1/Access_0 | Found Corrupted Exp. Powered Armor 60630 | -1/Access_0 | Found Corrupted Exp. Powered Armor 60698 | -1/Access_0 | Architect warped through subspace 60717 | -1/Access_0 | Found Integrated Dissipator 60717 | -1/Access_0 | Installed Integrated Dissipator, increased core heat dissipation (+20) 60747 | -1/Access_0 | Architect warped through subspace 60780 | -1/Access_0 | Found Exp. Powered Armor 60784 | -1/Access_0 | Used Core Regenerator, restored core integrity (+493) 60790 | -1/Access_0 | Found Exp. Powered Armor 60801 | -1/Access_0 | Architect warped through subspace 60840 | -1/Access_0 | Architect warped through subspace 60870 | -1/Access_0 | Found Exp. Phase Shifter 60874 | -1/Access_0 | Found Exp. Weapon Cycler 60887 | -1/Access_0 | Found Exp. Weapon Cycler 60891 | -1/Access_0 | Found Exp. Phase Shifter 60912 | -1/Access_0 | Architect warped through subspace 60936 | -1/Access_0 | Destroyed A2 60940 | -1/Access_0 | Architect warped through subspace 60954 | -1/Access_0 | Extracted Singularity Gate Test 138-C access codes from A2's data core 60960 | -1/Access_0 | Found Prototype Device 60960 | -1/Access_0 | Identified ST Field Compressor 60966 | -1/Access_0 | A5 warped into view 60977 | -1/Access_0 | Architect warped through subspace 60987 | -1/Access_0 | Destroyed A5 61045 | -1/Access_0 | Architect warped through subspace 61081 | -1/Access_0 | Architect warped through subspace 61121 | -1/Access_0 | Started Test 138-B, establishing a local singularity 61121 | -1/Access_0 | Singularity Gate disabled 61123 | -1/Access_0 | Singularity Gate disabled 61152 | -1/Access_0 | Found Exp. Core Analyzer 61208 | -1/Access_0 | Architect warped through subspace 61244 | -1/Access_0 | Architect warped through subspace 61279 | -1/Access_0 | A4 warped into view 61285 | -1/Access_0 | Destroyed A4 61289 | -1/Access_0 | Architect warped through subspace 61322 | -1/Access_0 | Subspace Access Node disabled 61333 | -1/Access_0 | Architect warped through subspace 61374 | -1/Access_0 | Architect warped through subspace 61407 | -1/Access_0 | Architect warped through subspace 61440 | -1/Access_0 | Architect warped through subspace 61471 | -1/Access_0 | Architect warped through subspace 61486 | -1/Access_0 | Crushed by falling debris 61503 | -1/Access_0 | Architect warped through subspace 61526 | -1/Access_0 | Architect warped through subspace 61571 | -1/Access_0 | Architect warped through subspace 61592 | -1/Access_0 | Architect warped through subspace 61646 | -1/Access_0 | Architect warped through subspace 61690 | -1/Access_0 | Architect warped through subspace 61746 | -1/Access_0 | Architect warped through subspace 61788 | -1/Access_0 | Architect warped through subspace 61792 | -1/Access_0 | A3 warped into view 61796 | -1/Access_0 | Destroyed A3 61806 | -1/Access_0 | Subspace Access Node disabled 61825 | -1/Access_0 | Architect warped through subspace 61858 | -1/Access_0 | Architect warped through subspace 61887 | -1/Access_0 | Destroyed Architect 61904 | -1/Access_0 | Extracted unknown sensor trigger ID from Architect's data core 61909 | -1/Access_0 | Found Prototype Protection 61909 | -1/Access_0 | Identified Centrium Linked Plating 61915 | -1/Access_0 | Found Centrium Linked Plating 61920 | -1/Access_0 | Found Hpw. Transdimensional Reconstructor 62521 | -1/Access_0 | Found Hpw. Transdimensional Reconstructor 62667 | -1/Access_0 | Warped through subspace to slip node 62667 | -1/Access_0 | Discovered new exit (range 8) 62668 | -1/Access_0 | Warped through subspace to slip node 62675 | *** | Heading to fleet! Last Messages --------------- 62519_ Dropped Adv. Surge Thruster. 62520_ Arm. Scrap Engine consumes Adv. Surge Thruster. 62521_ Acquired Hpw. Transdimensional Reconstructor. 62559_ Scrap Engine modifies HC-Antigrav Exoskeleton: Time/Move +39, Move Heat -2, Burnout +40 Renamed Flying Surge-HC Exoskeleton. 62561_ Dropped Cmb. Antigrav System. 62562_ Arm. Scrap Engine consumes Cmb. Antigrav System. 62664_ Scrap Engine modifies Flying Surge-HC Exoskeleton: Support -131, Max Integrity -448. 62667_ Warped through subspace, drawn to slip node. 62667_ EXIT=FOUND 62668_ Warped through subspace, drawn to slip node. Map ----- +----------------------------------------------------+ | | | | | | | | | | | | | | | | | | | | | | | | | | | | | | | | | ?????????????????????????????????????????????????? | | ?????????????????????????????????????????????????? | | ?????????????????????????????????????????????????? | | ?????????????????????????????????????????????????? | | ?????????????????????????????????????????????????? | | ?????????????????????????????????????????????????? | | ????????????????????????###??????????????????????? | | ???????????????????????## ##?????????????????????? | | ???????????????????????# #?????????????????????? | | ???????????????????????# @ #?????????????????????? | | ??????????????????????## #?????????????????????? | | ??????????????????????# #?????????????????????? | | ??????????????????????# ##?????????????????????? | | ??????????????????????## #?????????????????????? | | ??????????????????????# #?????????????????????? | | ??????????????????????# ##?????????????????????? | | ??????????????????????# < #?????????????????????? | | ??????????????????????# ##?????????????????????? | | ??????????????????????## #??????????????????????? | | ???????????????????????####??????????????????????? | | ?????????????????????????????????????????????????? | | ?????????????????????????????????????????????????? | | ?????????????????????????????????????????????????? | | ?????????????????????????????????????????????????? | | ?????????????????????????????????????????????????? | | ?????????????????????????????????????????????????? | | ?????????????????????????????????????????????????? | | ?????????????????????????????????????????????????? | | ?????????????????????????????????????????????????? | | ?????????????????????????????????????????????????? | | ?????????????????????????????????????????????????? | | ?????????????????????????????????????????????????? | | ?????????????????????????????????????????????????? | | ?????????????????????????????????????????????????? | +----------------------------------------------------+ Best States ------------- Heat Dissipation 128 Coolant Potential 220 Energy Generation 120 Energy Capacity 1466 Matter Stores 300 Matter Capacity 600 Sight Range 23 Robot Scan Range 19 Terrain Scan Range 20 Terrain Scan Density 210 Jamming Range 16 Cloak Strength 2 Base Temperature (-) 200 Armor Coverage 2400 Resistance: EX 75 Resistance: EM 75 Core Shielding 30 Propulsion Shielding 33 Utility Shielding 90 Point Defense Rating 80 Weapon Cycling 30 Phase Shifting 20 Evasion (%) 90 Targeting Accuracy 20 Target Analysis 8 Core Analysis 8 Armor Integrity Analysis 50 Recoil Reduction 8 Matter Filtering 30 Energy Filtering 30 Particle Charging 25 Salvage Targeting 2 Offensive Hacking 36 Defensive Hacking 20 Authchip Count 1 Item Schematics ----------------- None Robot Schematics ------------------ None Fabricated ------------ Biometal Leg | x2 | -5/Factory | Preloaded Hvy. Flak Cannon | x2 | -4/Factory Weapon Mount | x2 | -3/Research Cld. Linear Gravjet | x1 | -2/Testing | Preloaded H-88 Terminator | x2 | -1/Access | Preloaded Repaired ---------- Centrium Medium Armor Plating | 37% | -4/Factory Huge Storage Unit | 12% | -3/Research Studied --------- Hvy. Shield Leg | -2/Research | Hacked Enh. Hardcell Cannon | -2/Research | Hacked Hvy. Laser | -2/Testing | Hacked Alien Tech Used ----------------- Integrated Reactor Sigix Broadsword Core Reset Matrix Core Membrane Core Cannon Microwarp Drive Subatomic Replicator LRC Armor Spacefold Activator Integrity Redistributor Core Regenerator Transdimensional Reconstructor Integrated Dissipator High-powered Transdimensional Reconstructor Achievements -------------- Consequences Deadly Precision Drive-By Monstrosity Morally Flexible Sixth Sense Suspicious That Tickles Thread The Needle Around The Corner Vwoop! Walls Are Suggestions Challenges ------------ None Game ------ Seed ExpertProjectionBooster Manual? 0 Play Time 10:18:50 Cumulative 775.2 hours Start 2025.10.29 @ 21:20:15 End 2025.10.30 @ 07:48:38 Sessions 1 Manual Loads 0 Difficulty Rogue Special Mode None Game No. 175 Rogue 175 Adventurer 0 Explorer 0 Win Type 2 Total 47 Types 13/8/10/2/1/1/8/2/1/1 Lore% 78 Gallery% 86 Achievement% 61 Wizard Run 0 Options --------- Layout 1 ASCII 0 Keyboard 0 Movement Mouse Keybinds 0 Fullscreen 1 Font 24/Smallcaps Map View 50x35 Zoom Use 0% Tactical HUD 1 Map Filters NONE Filters NONE Steam 1 RUN: 8d3cf7f7-1cb9-45df-b7f1-0dbd3d62ae72